{"text_format":"1","workbook":"xlsx","n_sheets":34,"sheets":["Datentabelle","Einordnung Dia","Einordnung Organisation","Einzugsberec","Einnahmequellen","Öff.Mittel","Unterstützung","Unterstützer Dia","Unterstützer","Leistungen Dia","Leistungen","Altersgruppen","Zielgruppen","Anzahl","Beteiligung ZG","Kooperation","Koop. Wer","Koop.Partner","Wirkung kooperation","Koop. Wirkung","Netzwerk","Netzwerkname","Netzw. Wirkung","Beteiligung Netzw.","Koop. Kommune","Aspekte Kommune","Anzahl MA","Leistungen Ehrenamt","Aufgaben","Hauptamt","Zusammenarbeit Ehrenamt","Zivilgesellschaft bewertung","Zivilgesellschaft","Schlussfrage"],"not_rendered":{"charts":29,"images":0,"macros":0,"external_links":0,"defined_names":2,"comments":0,"pivot_tables":0},"unopened":[{"sheet":"Einordnung Dia","index":1,"reason":"not_a_worksheet"},{"sheet":"Unterstützer Dia","index":7,"reason":"not_a_worksheet"},{"sheet":"Leistungen Dia","index":9,"reason":"not_a_worksheet"},{"sheet":"Wirkung kooperation","index":18,"reason":"not_a_worksheet"},{"sheet":"Zivilgesellschaft bewertung","index":31,"reason":"not_a_worksheet"}],"bounds":{"document_bytes":16777216,"sheet_cells":100000,"rows_first":2000,"rows_last":500,"rows_between":2000,"halvings":0,"cell_chars":16384,"cell_head_chars":4096},"cells_cut":0,"cells_raw":0,"read":"whole","date_system":"1900"}

{"sheet":"Datentabelle","index":0,"n_rows":208,"n_cols":183,"rows_kept":208,"cut":false,"hidden":false,"merged":[]}
["Ant-wort \nID","Einordnung [Verband]","Einordnung [Kommune]","Einordnung  [Stiftung]","Einordnung [Verein]","Einordnung [Träger der freien Jugendhilfe.. ]","Einordnung  [Träger der freien Wohlfahrtspflege. ]","Einordnung  [Initiative]","Einordnung [Kirche / religiöse Einrichtung]","Einordnung  [Unternehmen]","Einordnung  [Straßen-/Schuls.. ]","Einordnung  [Sonstiges]","Wie heißt Ihre .. ","Für welchen Ein..  [Stadtteil / Sta.. ]","Für welchen Ein..  [Stadt]","Für welchen Ein..  [Landkreis]","Wie setzen sich..  [Mitgliedsbeiträge]","Wie setzen sich..  [Selbsterwirtsch.. ]","Wie setzen sich..  [Öffentliche Mittel]","Wie setzen sich..  [Spenden und Spo.. ]","Wie setzen sich..  [Fördermittel an.. ]","Wie setzen sich..  [Vermögenserträg.. ]","Wie setzen sich..  [Kirchensteuer]","Wie setzen sich..  [Sonstiges]","Woher kommen di..  [Kommune]","Woher kommen di..  [Land]","Woher kommen di..  [Bund]","Woher kommen di..  [Europäische Uni.. ]","Woher kommen di..  [Sonstiges]","Welche nicht-fi..  [Überlassung von.. ]","Welche nicht-fi..  [Bereitstellung .. ]","Welche nicht-fi..  [Bereitstellung .. ]","Welche nicht-fi..  [Bereitstellung .. ]","Welche nicht-fi..  [Ideelle Unterst.. ]","Welche nicht-fi..  [Trifft auf uns .. ]","Welche nicht-fi..  [Sonstiges]","Wer gewährt die..  [Die Kommune]","Wer gewährt die..  [Öffentliche Ein.. ]","Wer gewährt die..  [Wirtschaftsunte.. ]","Wer gewährt die..  [Andere Organisa.. ]","Wer gewährt die..  [Privatpersonen/.. ]","Wer gewährt die..  [Sonstiges]","Welche Leistung..  [Bereitstellung .. ]","Welche Leistung..  [Beratungsangebo.. ]","Welche Leistung..  [Bildungsangebot.. ]","Welche Leistung..  [Soziale Hilfen .. ]","Welche Leistung..  [Angebote zur Fr.. ]","Welche Leistung..  [Angebote zur Au.. ]","Welche Leistung..  [Angebote im Ber.. ]","Welche Leistung..  [Vermittlung (vo.. ]","Welche Leistung..  [Förderung gesel.. ]","Welche Leistung..  [Vertretung und .. ]","Welche Leistung..  [Vernetzung best.. ]","Welche Leistung..  [Bereitstellung .. ]","Welche Leistung..  [Organisation vo.. ]","Welche Leistung..  [Angebote für re.. ]","Welche Leistung..  [\"offene Tür\"]","Welche Leistung..  [Sonstiges]","Richtet sich di..  [unter 5 Jahre]","Richtet sich di..  [5 - 12 Jahre]","Richtet sich di..  [13 - 19 Jahre]","Richtet sich di..  [20 - 26 Jahre]","Richtet sich di..  [27 - 50 Jahre]","Richtet sich di..  [51 - 65 Jahre]","Richtet sich di..  [66 - 80 Jahre]","Richtet sich di..  [über 80 Jahre]","Richtet sich di..  [Unsere Organisa.. ]","Richtet sich di..  [Nein, die Arbei.. ]","Richtet sich di..  [Kinder und Juge.. ]","Richtet sich di..  [Menschen mit Mi.. ]","Richtet sich di..  [Flüchtlinge]","Richtet sich di..  [Sozial schwäche.. ]","Richtet sich di..  [Hilfe- und pfle.. ]","Richtet sich di..  [Menschen mit Be.. ]","Richtet sich di..  [Familien]","Richtet sich di..  [Sonstiges]","Wie viele Kinde..  [...die täglich .. ]","Wie viele Kinde..  [...die wöchentl.. ]","Wie viele Kinde..  [...die monatlic.. ]","Wie viele Kinde..  [...die jährlich.. ]","In welcher Art ..  [Keine Beteiligung]","In welcher Art ..  [Information (pe.. ]","In welcher Art ..  [Mitwirkung (Ste.. ]","In welcher Art ..  [Mitbestimmung b.. ]","In welcher Art ..  [Selbstbestimmun.. ]","In welcher Art ..  [Sonstiges]","Arbeitet Ihre E.. ","Mit wem arbeite..  [Unternehmen]","Mit wem arbeite..  [Freiwilligenage.. ]","Mit wem arbeite..  [Mehrgeneratione.. ]","Mit wem arbeite..  [Bildungseinrich.. ]","Mit wem arbeite..  [Andere gemeinnü.. ]","Mit wem arbeite..  [Kirchen]","Mit wem arbeite..  [Kommune]","Mit wem arbeite..  [Sonstiges]","Wie stufen Sie ..  [Unternehmen]","Wie stufen Sie ..  [Freiwilligenage.. ]","Wie stufen Sie ..  [Mehrgeneratione.. ]","Wie stufen Sie ..  [Bildungseinrich.. ]","Wie stufen Sie ..  [Andere gemeinnü.. ]","Wie stufen Sie ..  [Kirchen]","Wie stufen Sie ..  [Kommune]","Bitte nennen Si..  [1]","Bitte nennen Si..  [2]","Bitte nennen Si..  [3]","Bitte nennen Si..  [4]","Bitte nennen Si..  [5]","Welche Wirkung ..  [Informationsaus.. ]","Welche Wirkung ..  [Gegenseitige Ab.. ]","Welche Wirkung ..  [Orientierung an.. ]","Welche Wirkung ..  [Gemeinsame Vera.. ]","Welche Wirkung ..  [Gemeinsame Nutz.. ]","Welche Wirkung ..  [Gemeinsame Akqu.. ]","Welche Wirkung ..  [Ein besserer Ko.. ]","Welche Wirkung ..  [Gemeinsame Inte.. ]","Welche Wirkung ..  [Gemeinsame Öffe.. ]","Welche Wirkung ..  [Gemeinsame Proj.. ]","Welche Wirkung ..  [Eine kommunale .. ]","Welche Wirkung ..  [Zusätzliche Fin.. ]","Ist die Zusamme.. ","Wie lautet die .. ","Bitte geben Sie..  [Das Netzwerk er.. ]","Bitte geben Sie..  [Das Netzwerk ve.. ]","Bitte geben Sie..  [Das Netzwerk hi.. ]","Bitte geben Sie..  [Das Netzwerk hi.. ]","Bitte geben Sie..  [Im Netzwerk gib.. ]","Bitte geben Sie..  [Das Vorhandense.. ]","Bitte geben Sie..  [Das Netzwerk tr.. ]","Bitte geben Sie..  [Wir haben im Ne.. ]","Bitte geben Sie..  [Die Kooperation.. ]","Beurteilen Sie ..  []","In welcher Art ..  [Information]","In welcher Art ..  [Möglichkeit zur.. ]","In welcher Art ..  [Befragung]","In welcher Art ..  [Stimmrecht]","In welcher Art ..  [Wir haben kein .. ]","Sind Sie an ein.. ","Welche Aspekte ..  [Informationen a.. ]","Welche Aspekte ..  [Arbeit miteinan.. ]","Welche Aspekte ..  [Veranstaltungen.. ]","Welche Aspekte ..  [Nutzung von Räu.. ]","Welche Aspekte ..  [Netzwerkpartner.. ]","Welche Aspekte ..  [Gemeinsam Proje.. ]","Welche Aspekte ..  [Finanzielle Unt.. ]","Welche Aspekte ..  [Fort- und Weite.. ]","Welche Aspekte ..  [Mitbestimmung ü.. ]","Wie viele haupt..  [Hauptamtliche][]","Wie viele haupt..  [Freiwillig Engagierte][]","Wie viele haupt..  [Hauptamtliche][]","Wie viele haupt..  [Freiwillig Engagierte][]","Welche der folg..  [Formen der Aner.. ]","Welche der folg..  [Ehrenamtscard]","Welche der folg..  [Zertifikate für.. ]","Welche der folg..  [Möglichkeiten z.. ]","Welche der folg..  [Kostenlose Nutz.. ]","Welche der folg..  [Sachzuwendungen.. ]","Welche der folg..  [Erstattung von .. ]","Welche der folg..  [Übungsleiterpau.. ]","Welche der folg..  [Ehrenamtspausch.. ]","Welche der folg..  [Honorare]","Welche der folg..  [keine]","Welche der folg..  [Sonstiges]","Welche Aufgaben..  [Führung und Lei.. ]","Welche Aufgaben..  [Erbringung von .. ]","Welche Aufgaben..  [Konzeptionelle .. ]","Welche Aufgaben..  [Verwaltung/admi.. ]","Sind Sie als Ha.. ","Bitte geben Sie..  [Ich bin mit der.. ]","Bitte geben Sie..  [Ich arbeite eng.. ]","Bitte geben Sie..  [Die Ehrenamtlic.. ]","Bitte geben Sie..  [Die Ehrenamtlic.. ]","Bitte geben Sie..  [Die Zusammenarb.. ]","Bitte geben Sie..  [Der Einsatz von.. ]","Bitte geben Sie..  [Freiwillig Engagierte l.. ]","Bitte geben Sie..  [Der Einsatz von.. ]","Bitte nehmen Si..  [...ersetzt staa.. ]","Bitte nehmen Si..  [...ermöglicht e.. ]","Bitte nehmen Si..  [...bringt gesel.. ]","Bitte nehmen Si..  [...bewahrt gese.. ]","Bitte nehmen Si..  [...leistet eine.. ]","Bitte nehmen Si..  [...wird vom Sta.. ]","Bitte nehmen Si..  [...füllt die Lü.. ]","Haben wir noch .. "]
[null,"Ja","Ja","Ja","Ja","Ja","Ja","Ja","Ja","Ja","Ja",null,null,"Ja","Ja","Ja","Ja","Ja","Ja","Ja","Ja","Ja","Ja",null,"Ja","Ja","Ja","Ja",null,"Ja","Ja","Ja","Ja","Ja","Ja",null,"Ja","Ja","Ja","Ja","Ja",null,"Ja","Ja","Ja","Ja","Ja","Ja","Ja","Ja","Ja","Ja","Ja","Ja","Ja","Ja","Ja",null,"Ja","Ja","Ja","Ja","Ja","Ja","Ja","Ja","Ja","Ja","Ja","Ja","Ja","Ja","Ja","Ja","Ja",null,null,null,null,null,"Ja","Ja","Ja","Ja","Ja",null,"Ja","Ja","Ja","Ja","Ja","Ja","Ja","Ja",null,"sehr gut","sehr gut","sehr gut","sehr gut","sehr gut","sehr gut","sehr gut",null,null,null,null,null,"trifft voll und ganz zu","trifft voll und ganz zu","trifft voll und ganz zu","trifft voll und ganz zu","trifft voll und ganz zu","trifft voll und ganz zu","trifft voll und ganz zu","trifft voll und ganz zu","trifft voll und ganz zu","trifft voll und ganz zu","trifft voll und ganz zu","trifft voll und ganz zu","Ja",null,"trifft voll und ganz zu","trifft voll und ganz zu","trifft voll und ganz zu","trifft voll und ganz zu","trifft voll und ganz zu","trifft voll und ganz zu","trifft voll und ganz zu","trifft voll und ganz zu","trifft voll und ganz zu","voll und ganz zufrieden","Ja","Ja","Ja","Ja","Ja","Ja","Ja","Ja","Ja","Ja","Ja","Ja","Ja","Ja","Ja",null,null,null,null,"Ja","Ja","Ja","Ja","Ja","Ja","Ja","Ja","Ja","Ja","Ja",null,"Freiwillig Engagierte","Freiwillig Engagierte","Freiwillig Engagierte","Freiwillig Engagierte","Ja","trifft voll und ganz zu","trifft voll und ganz zu","trifft voll und ganz zu","trifft voll und ganz zu","trifft voll und ganz zu","trifft voll und ganz zu","trifft voll und ganz zu","trifft voll und ganz zu","trifft voll und ganz zu","trifft voll und ganz zu","trifft voll und ganz zu","trifft voll und ganz zu","trifft voll und ganz zu","trifft voll und ganz zu","trifft voll und ganz zu"]
[null,"Nein","Nein","Nein","Nein","Nein","Nein","Nein","Nein","Nein","Nein",null,null,"Nein","Nein","Nein","Nein","Nein","Nein","Nein","Nein","Nein","Nein",null,"Nein","Nein","Nein","Nein",null,"Nein","Nein","Nein","Nein","Nein","Nein",null,"Nein","Nein","Nein","Nein","Nein",null,"Nein","Nein","Nein","Nein","Nein","Nein","Nein","Nein","Nein","Nein","Nein","Nein","Nein","Nein","Nein",null,"Nein","Nein","Nein","Nein","Nein","Nein","Nein","Nein","Nein","Nein","Nein","Nein","Nein","Nein","Nein","Nein","Nein",null,null,null,null,null,"Nein","Nein","Nein","Nein","Nein",null,"Nein","Nein","Nein","Nein","Nein","Nein","Nein","Nein",null,"eher gut","eher gut","eher gut","eher gut","eher gut","eher gut","eher gut",null,null,null,null,null,"trifft eher zu","trifft eher zu","trifft eher zu","trifft eher zu","trifft eher zu","trifft eher zu","trifft eher zu","trifft eher zu","trifft eher zu","trifft eher zu","trifft eher zu","trifft eher zu","Nein",null,"trifft eher zu","trifft eher zu","trifft eher zu","trifft eher zu","trifft eher zu","trifft eher zu","trifft eher zu","trifft eher zu","trifft eher zu","eher zufrieden","Nein","Nein","Nein","Nein","Nein","Nein","Nein","Nein","Nein","Nein","Nein","Nein","Nein","Nein","Nein",null,null,null,null,"Nein","Nein","Nein","Nein","Nein","Nein","Nein","Nein","Nein","Nein","Nein",null,"Hauptamtliche","Hauptamtliche","Hauptamtliche","Hauptamtliche","Nein","trifft eher zu","trifft eher zu","trifft eher zu","trifft eher zu","trifft eher zu","trifft eher zu","trifft eher zu","trifft eher zu","trifft eher zu","trifft eher zu","trifft eher zu","trifft eher zu","trifft eher zu","trifft eher zu","trifft eher zu"]
[null,null,null,null,null,null,null,null,null,null,null,null,null,null,null,null,null,null,null,null,null,null,null,null,"k.A. [= Frage nicht beantwortet]",null,null,null,null,null,null,null,null,null,null,null,"k.A. [= Frage nicht beantwortet]",null,null,null,null,null,null,null,null,null,null,null,null,null,null,null,null,null,null,null,null,null,null,null,null,null,null,null,null,null,null,null,null,null,null,null,null,null,null,null,null,null,null,null,null,null,null,null,null,null,"k.A.","k.A.","k.A.","k.A.","k.A.","k.A.","k.A.","k.A.",null,"teils / teils","teils / teils","teils / teils","teils / teils","teils / teils","teils / teils","teils / teils",null,null,null,null,null,"teils / teils","teils / teils","teils / teils","teils / teils","teils / teils","teils / teils","teils / teils","teils / teils","teils / teils","teils / teils","teils / teils","teils / teils","k.A.",null,"teils / teils","teils / teils","teils / teils","teils / teils","teils / teils","teils / teils","teils / teils","teils / teils","teils / teils","teils / teils","k.A.","k.A.","k.A.","k.A.","k.A.","k.A.","k.A.","k.A.","k.A.","k.A.","k.A.","k.A.","k.A.","k.A.","k.A.",null,null,null,null,"k.A.","k.A.","k.A.","k.A.","k.A.","k.A.","k.A.","k.A.","k.A.","k.A.","k.A.",null,"Frw. Engagierte Hauptamtliche gemeinsam","Frw. Engagierte Hauptamtliche gemeinsam","Frw. Engagierte Hauptamtliche gemeinsam","Frw. Engagierte Hauptamtliche gemeinsam","k.A.","teils / teils","teils / teils","teils / teils","teils / teils","teils / teils","teils / teils","teils / teils","teils / teils","teils / teils","teils / teils","teils / teils","teils / teils","teils / teils","teils / teils","teils / teils"]
[null,null,null,null,null,null,null,null,null,null,null,null,null,null,null,null,null,null,null,null,null,null,null,null,null,null,null,null,null,null,null,null,null,null,null,null,null,null,null,null,null,null,null,null,null,null,null,null,null,null,null,null,null,null,null,null,null,null,null,null,null,null,null,null,null,null,null,null,null,null,null,null,null,null,null,null,null,null,null,null,null,null,null,null,null,null,null,null,null,null,null,null,null,null,null,"eher nicht gut","eher nicht gut","eher nicht gut","eher nicht gut","eher nicht gut","eher nicht gut","eher nicht gut",null,null,null,null,null,"trifft eher nicht zu","trifft eher nicht zu","trifft eher nicht zu","trifft eher nicht zu","trifft eher nicht zu","trifft eher nicht zu","trifft eher nicht zu","trifft eher nicht zu","trifft eher nicht zu","trifft eher nicht zu","trifft eher nicht zu","trifft eher nicht zu",null,null,"trifft eher nicht zu","trifft eher nicht zu","trifft eher nicht zu","trifft eher nicht zu","trifft eher nicht zu","trifft eher nicht zu","trifft eher nicht zu","trifft eher nicht zu","trifft eher nicht zu","eher nicht zufrieden",null,null,null,null,null,null,null,null,null,null,null,null,null,null,null,null,null,null,null,null,null,null,null,null,null,null,null,null,null,null,null,null,null,null,null,null,"trifft eher nicht zu","trifft eher nicht zu","trifft eher nicht zu","trifft eher nicht zu","trifft eher nicht zu","trifft eher nicht zu","trifft eher nicht zu","trifft eher nicht zu","trifft eher nicht zu","trifft eher nicht zu","trifft eher nicht zu","trifft eher nicht zu","trifft eher nicht zu","trifft eher nicht zu","trifft eher nicht zu"]
[null,null,null,null,null,null,null,null,null,null,null,null,null,null,null,null,null,null,null,null,null,null,null,null,null,null,null,null,null,null,null,null,null,null,null,null,null,null,null,null,null,null,null,null,null,null,null,null,null,null,null,null,null,null,null,null,null,null,null,null,null,null,null,null,null,null,null,null,null,null,null,null,null,null,null,null,null,null,null,null,null,null,null,null,null,null,null,null,null,null,null,null,null,null,null,"nicht gut","nicht gut","nicht gut","nicht gut","nicht gut","nicht gut","nicht gut",null,null,null,null,null,"trifft ganz und gar nicht zu","trifft ganz und gar nicht zu","trifft ganz und gar nicht zu","trifft ganz und gar nicht zu","trifft ganz und gar nicht zu","trifft ganz und gar nicht zu","trifft ganz und gar nicht zu","trifft ganz und gar nicht zu","trifft ganz und gar nicht zu","trifft ganz und gar nicht zu","trifft ganz und gar nicht zu","trifft ganz und gar nicht zu",null,null,"trifft ganz und gar nicht zu","trifft ganz und gar nicht zu","trifft ganz und gar nicht zu","trifft ganz und gar nicht zu","trifft ganz und gar nicht zu","trifft ganz und gar nicht zu","trifft ganz und gar nicht zu","trifft ganz und gar nicht zu","trifft ganz und gar nicht zu","unzufrieden",null,null,null,null,null,null,null,null,null,null,null,null,null,null,null,null,null,null,null,null,null,null,null,null,null,null,null,null,null,null,null,null,null,null,null,null,"trifft ganz und gar nicht zu","trifft ganz und gar nicht zu","trifft ganz und gar nicht zu","trifft ganz und gar nicht zu","trifft ganz und gar nicht zu","trifft ganz und gar nicht zu","trifft ganz und gar nicht zu","trifft ganz und gar nicht zu","trifft ganz und gar nicht zu","trifft ganz und gar nicht zu","trifft ganz und gar nicht zu","trifft ganz und gar nicht zu","trifft ganz und gar nicht zu","trifft ganz und gar nicht zu","trifft ganz und gar nicht zu"]
[null,null,null,null,null,null,null,null,null,null,null,null,null,null,null,null,null,null,null,null,null,null,null,null,null,null,null,null,null,null,null,null,null,null,null,null,null,null,null,null,null,null,null,null,null,null,null,null,null,null,null,null,null,null,null,null,null,null,null,null,null,null,null,null,null,null,null,null,null,null,null,null,null,null,null,null,null,null,null,null,null,null,null,null,null,null,null,null,null,null,null,null,null,null,null,null,null,null,null,null,null,null,null,null,null,null,null,"k.A.","k.A.","k.A.","k.A.","k.A.","k.A.","k.A.","k.A.","k.A.","k.A.","k.A.","k.A.",null,null,"k.A.","k.A.","k.A.","k.A.","k.A.","k.A.","k.A.","k.A.","k.A.",null,null,null,null,null,null,null,null,null,null,null,null,null,null,null,null,null,null,null,null,null,null,null,null,null,null,null,null,null,null,null,null,null,null,null,null,null,"k.A.","k.A.","k.A.","k.A.","k.A.","k.A.","k.A.","k.A.","k.A.","k.A.","k.A.","k.A.","k.A.","k.A.","k.A."]
[]
[1]
[2]
[3]
[4]
[5]
[6]
[7]
[8]
[9]
[10]
[11]
[12]
[13]
[14]
[15]
[16]
[17]
[18]
[19]
[20]
[21]
[22]
[23]
[24]
[25]
[26]
[27]
[28]
[29]
[30]
[31]
[32]
[33]
[34]
[35]
[36]
[37]
[38]
[39]
[40]
[41]
[42]
[43]
[44]
[45]
[46]
[47]
[48]
[49]
[50]
[51]
[52]
[53]
[54]
[55]
[56]
[57]
[58]
[59]
[60]
[61]
[62]
[63]
[64]
[65]
[66]
[67]
[68]
[69]
[70]
[71]
[72]
[73]
[74]
[75]
[76]
[77]
[78]
[79]
[80]
[81]
[82]
[83]
[84]
[85]
[86]
[87]
[88]
[89]
[90]
[91]
[92]
[93]
[94]
[95]
[96]
[97]
[98]
[99]
[100]
[101]
[102]
[103]
[104]
[105]
[106]
[107]
[108]
[109]
[110]
[111]
[112]
[113]
[114]
[115]
[116]
[117]
[118]
[119]
[120]
[121]
[122]
[123]
[124]
[125]
[126]
[127]
[128]
[129]
[130]
[131]
[132]
[133]
[134]
[135]
[136]
[137]
[138]
[139]
[140]
[141]
[142]
[143]
[144]
[145]
[146]
[147]
[148]
[149]
[150]
[151]
[152]
[153]
[154]
[155]
[156]
[157]
[158]
[159]
[160]
[161]
[162]
[163]
[164]
[165]
[166]
[167]
[168]
[169]
[170]
[171]
[172]
[173]
[174]
[175]
[176]
[177]
[178]
[179]
[180]
[181]
[182]
[183]
[184]
[185]
[186]
[187]
[188]
[189]
[190]
[191]
[192]
[193]
[194]
[195]
[196]
[197]
[198]
[199]
[200]

{"sheet":"Einordnung Organisation","index":2,"n_rows":18,"n_cols":3,"rows_kept":18,"cut":false,"hidden":false,"merged":[]}
["\"Bitte ordnen Sie Ihre Einrichtung / Organisation zu…\""]
["Mehrfachantwort möglich"]
[]
["Antwortmöglichkeit","Absolut","Relativ"]
["Verband",{"$f":"COUNTIF(Datentabelle!B:B,\"Ja\")-1","v":0},{"$f":"(B5/$B$16)","v":{"$error":"#DIV/0!"}}]
["Kommune",{"$f":"COUNTIF(Datentabelle!C:C,\"Ja\")-1","v":0},{"$f":"(B6/$B$16)","v":{"$error":"#DIV/0!"}}]
["Stiftung",{"$f":"COUNTIF(Datentabelle!D:D,\"Ja\")-1","v":0},{"$error":"#DIV/0!"}]
["Verein",{"$f":"COUNTIF(Datentabelle!E:E,\"Ja\")-1","v":0},{"$error":"#DIV/0!"}]
["Träger der freien Jugendhilfe",{"$f":"COUNTIF(Datentabelle!F:F,\"Ja\")-1","v":0},{"$error":"#DIV/0!"}]
["Träger der freien Wohlfahrtspflege",{"$f":"COUNTIF(Datentabelle!G:G,\"Ja\")-1","v":0},{"$error":"#DIV/0!"}]
["Initiative",{"$f":"COUNTIF(Datentabelle!H:H,\"Ja\")-1","v":0},{"$error":"#DIV/0!"}]
["Kirche / religiöse Einrichtung",{"$f":"COUNTIF(Datentabelle!I:I,\"Ja\")-1","v":0},{"$error":"#DIV/0!"}]
["Unternehmen",{"$f":"COUNTIF(Datentabelle!J:J,\"Ja\")-1","v":0},{"$error":"#DIV/0!"}]
["Straßen-/Schulsozialarbeit",{"$f":"COUNTIF(Datentabelle!K:K,\"Ja\")-1","v":0},{"$error":"#DIV/0!"}]
["Sonstige",{"$f":"COUNTA(Datentabelle!L:L)-1","v":0},{"$error":"#DIV/0!"}]
[null,{"$f":"SUM(B5:B15)","v":0}]
[]
["SONSTIGE:"]

{"sheet":"Einzugsberec","index":3,"n_rows":8,"n_cols":3,"rows_kept":8,"cut":false,"hidden":false,"merged":[]}
["\"Für welchen Einzugsbereich ist Ihre Einrichtung / Organisation tätig?\""]
["Mehrfachantwort möglich"]
[]
["Antwortmöglichkeit","Absolut","Relativ"]
["Stadtteil/Stadtbezirk",{"$f":"COUNTIF(Datentabelle!N:N,\"JA\")-1","v":0},{"$f":"B5/$B$8","v":{"$error":"#DIV/0!"}}]
["Stadt",{"$f":"COUNTIF(Datentabelle!O:O,\"Ja\")-1","v":0},{"$f":"B6/$B$8","v":{"$error":"#DIV/0!"}}]
["Landkreis",{"$f":"COUNTIF(Datentabelle!P:P,\"Ja\")-1","v":0},{"$error":"#DIV/0!"}]
[null,{"$f":"SUM(B5:B7)","v":0}]

{"sheet":"Einnahmequellen","index":4,"n_rows":15,"n_cols":3,"rows_kept":15,"cut":false,"hidden":false,"merged":[]}
["\"Wie setzen sich die Einnahmen Ihrer Einrichtung / Organisation zusammen? Bitte geben Sie an, ob die angegebenen Einnahmequellen auf Ihre Einrichtung / Organisation zutreffen.\""]
["Mehrfachantwort möglich"]
[]
["Antwortmöglichkeit","Absolut","Relativ"]
["Mitgliedsbeiträge",{"$f":"COUNTIF(Datentabelle!Q:Q,\"Ja\")-1","v":0},{"$f":"B5/$B$13","v":{"$error":"#DIV/0!"}}]
["Selbsterwirtschaftete Mittel",{"$f":"COUNTIF(Datentabelle!R:R,\"Ja\")-1","v":0},{"$f":"B6/$B$13","v":{"$error":"#DIV/0!"}}]
["Öffentliche Mittel",{"$f":"COUNTIF(Datentabelle!S:S,\"Ja\")-1","v":0},{"$error":"#DIV/0!"}]
["Spenden und Sponsorengelder",{"$f":"COUNTIF(Datentabelle!T:T,\"Ja\")-1","v":0},{"$error":"#DIV/0!"}]
["Fördermittel anderer Organisationen",{"$f":"COUNTIF(Datentabelle!U:U,\"Ja\")-1","v":0},{"$error":"#DIV/0!"}]
["Vermögenserträge",{"$f":"COUNTIF(Datentabelle!V:V,\"Ja\")-1","v":0},{"$error":"#DIV/0!"}]
["Kirchensteuer",{"$f":"COUNTIF(Datentabelle!W:W,\"Ja\")-1","v":0},{"$error":"#DIV/0!"}]
["Sonstige",{"$f":"COUNTA(Datentabelle!X:X)-1","v":0},{"$error":"#DIV/0!"}]
[null,{"$f":"SUM(B5:B12)","v":0}]
[]
["SONSTIGE:"]

{"sheet":"Öff.Mittel","index":5,"n_rows":14,"n_cols":4,"rows_kept":14,"cut":false,"hidden":false,"merged":[]}
["\"Woher kommen die öffentlichen Mittel, die Ihre Einrichtung / Organisation erhalten hat?\""]
["Mehrfachantwort möglich"]
[]
["Antwortmöglichkeit","Absolut","Relativ","Relativ"]
[null,"(alle TN)","(alle TN)","(beantwortet)"]
["Kommune",{"$f":"COUNTIF(Datentabelle!Y:Y,\"Ja\")-1","v":0},{"$f":"B6/$B$12","v":{"$error":"#DIV/0!"}},{"$f":"B6/($B$12-$B$11)","v":{"$error":"#DIV/0!"}}]
["Land",{"$f":"COUNTIF(Datentabelle!Z:Z,\"Ja\")-1","v":0},{"$f":"B7/$B$12","v":{"$error":"#DIV/0!"}},{"$f":"B7/($B$12-$B$11)","v":{"$error":"#DIV/0!"}}]
["Bund",{"$f":"COUNTIF(Datentabelle!AA:AA,\"Ja\")-1","v":0},{"$error":"#DIV/0!"},{"$error":"#DIV/0!"}]
["Europäische Union / Europäischer Sozialfond (ESF)",{"$f":"COUNTIF(Datentabelle!AB:AB,\"Ja\")-1","v":0},{"$error":"#DIV/0!"},{"$error":"#DIV/0!"}]
["Sonstige",{"$f":"COUNTA(Datentabelle!AC:AC)-1","v":0},{"$error":"#DIV/0!"},{"$error":"#DIV/0!"}]
["Frage übersprungen",{"$f":"COUNTIF(Datentabelle!Y:Y,\"k.A.\")","v":0},{"$error":"#DIV/0!"}]
[null,{"$f":"SUM(B6:B11)","v":0}]
[]
["SONSTIGE:"]

{"sheet":"Unterstützung","index":6,"n_rows":15,"n_cols":4,"rows_kept":15,"cut":false,"hidden":false,"merged":[]}
["\"Welche nicht-finanziellen Unterstützungen erhält Ihre Einrichtung / Organisation?\""]
["Mehrfachantwort möglich"]
[]
["Antwortmöglichkeit","Absolut","Relativ","Relativ"]
[null,"(alle TN)","(alle TN)","(ohne \"Trifft nicht zu\")"]
["Überlassung von Infrastruktur",{"$f":"COUNTIF(Datentabelle!AD:AD,\"Ja\")-1","v":0},{"$f":"B6/$B$13","v":{"$error":"#DIV/0!"}},{"$f":"B6/($B$13-$B$12)","v":{"$error":"#DIV/0!"}}]
["Bereitstellung von Serviceleistungen und Diensten",{"$f":"COUNTIF(Datentabelle!AE:AE,\"Ja\")-1","v":0},{"$f":"B7/$B$13","v":{"$error":"#DIV/0!"}},{"$f":"B7/($B$13-$B$12)","v":{"$error":"#DIV/0!"}}]
["Bereitstellung von Personal",{"$f":"COUNTIF(Datentabelle!AF:AF,\"Ja\")-1","v":0},{"$error":"#DIV/0!"},{"$error":"#DIV/0!"}]
["Bereitstellung von Sachmitteln / Sachspenden",{"$f":"COUNTIF(Datentabelle!AG:AG,\"Ja\")-1","v":0},{"$error":"#DIV/0!"},{"$error":"#DIV/0!"}]
["Ideelle Unterstützung",{"$f":"COUNTIF(Datentabelle!AH:AH,\"Ja\")-1","v":0},{"$error":"#DIV/0!"},{"$error":"#DIV/0!"}]
["Sonstige",{"$f":"COUNTA(Datentabelle!AJ:AJ)-1","v":0},{"$error":"#DIV/0!"},{"$error":"#DIV/0!"}]
["Trifft auf uns nicht zu",{"$f":"COUNTIF(Datentabelle!AI:AI,\"Ja\")-1","v":0},{"$error":"#DIV/0!"}]
[null,{"$f":"SUM(B6:B12)","v":0}]
[]
["SONSTIGE:"]

{"sheet":"Unterstützer","index":8,"n_rows":15,"n_cols":4,"rows_kept":15,"cut":false,"hidden":false,"merged":[]}
["\"Wer gewährt die nicht-finanziellen Unterstützungen?\""]
["Mehrfachantwort möglich"]
[]
["Antwortmöglichkeit","Absolut","Relativ","Relativ"]
[null,"(alle TN)","(alle TN)","(beantwortet)"]
["Kommune",{"$f":"COUNTIF(Datentabelle!AK:AK,\"Ja\")-1","v":0},{"$f":"B6/$B$13","v":{"$error":"#DIV/0!"}},{"$f":"B6/($B$13-$B$12)","v":{"$error":"#DIV/0!"}}]
["Öffentliche Einrichtungen",{"$f":"COUNTIF(Datentabelle!AL:AL,\"Ja\")-1","v":0},{"$error":"#DIV/0!"},{"$f":"B7/($B$13-$B$12)","v":{"$error":"#DIV/0!"}}]
["Wirtschaftsunternehmen",{"$f":"COUNTIF(Datentabelle!AM:AM,\"Ja\")-1","v":0},{"$error":"#DIV/0!"},{"$error":"#DIV/0!"}]
["Andere Organisationen",{"$f":"COUNTIF(Datentabelle!AN:AN,\"Ja\")-1","v":0},{"$error":"#DIV/0!"},{"$error":"#DIV/0!"}]
["Privatpersonen/Spender",{"$f":"COUNTIF(Datentabelle!AO:AO,\"Ja\")-1","v":0},{"$error":"#DIV/0!"},{"$error":"#DIV/0!"}]
["Sonstige",{"$f":"COUNTA(Datentabelle!AP:AP)-1","v":0},{"$f":"B11/$B$13","v":{"$error":"#DIV/0!"}},{"$error":"#DIV/0!"}]
["Frage übersprungen",{"$f":"COUNTIF(Datentabelle!AK:AK,\"k.A.\")","v":0},{"$f":"B12/$B$13","v":{"$error":"#DIV/0!"}}]
[null,{"$f":"SUM(B6:B10)","v":0}]
[]
["SONSTIGE:"]

{"sheet":"Leistungen","index":10,"n_rows":23,"n_cols":3,"rows_kept":23,"cut":false,"hidden":false,"merged":[]}
["\"Welche Leistungen werden von Ihrer Einrichtung / Organisation erbracht?\""]
["Mehrfachantwort möglich"]
[]
["Antwortmöglichkeit","Absolut","Relativ"]
["Bereitstellung von Informationen und Öffentlichkeitsarbeit",{"$f":"COUNTIF(Datentabelle!AQ:AQ,\"Ja\")-1","v":0},{"$f":"B5/$B$21","v":{"$error":"#DIV/0!"}}]
["Beratungsangebote",{"$f":"COUNTIF(Datentabelle!AR:AR,\"Ja\")-1","v":0},{"$f":"B6/$B$21","v":{"$error":"#DIV/0!"}}]
["Bildungsangebote",{"$f":"COUNTIF(Datentabelle!AS:AS,\"Ja\")-1","v":0},{"$error":"#DIV/0!"}]
["Soziale Hilfen und Dienstleistungen",{"$f":"COUNTIF(Datentabelle!AT:AT,\"Ja\")-1","v":0},{"$error":"#DIV/0!"}]
["Angebote zur Freizeitgestaltung",{"$f":"COUNTIF(Datentabelle!AU:AU,\"Ja\")-1","v":0},{"$error":"#DIV/0!"}]
["Angebote zur Ausübung von Sport",{"$f":"COUNTIF(Datentabelle!AV:AV,\"Ja\")-1","v":0},{"$error":"#DIV/0!"}]
["Angebote im Bereich „Gesundheit“",{"$f":"COUNTIF(Datentabelle!AW:AW,\"Ja\")-1","v":0},{"$error":"#DIV/0!"}]
["Vermittlung",{"$f":"COUNTIF(Datentabelle!AX:AX,\"Ja\")-1","v":0},{"$error":"#DIV/0!"}]
["Förderung gesellschaftlicher / politischer Teilhabe",{"$f":"COUNTIF(Datentabelle!AY:AY,\"Ja\")-1","v":0},{"$error":"#DIV/0!"}]
["Vertretung und Pflege gemeinsamer Werte und Interessen",{"$f":"COUNTIF(Datentabelle!AZ:AZ,\"Ja\")-1","v":0},{"$error":"#DIV/0!"}]
["Vernetzung bestimmter Gruppen",{"$f":"COUNTIF(Datentabelle!BA:BA,\"Ja\")-1","v":0},{"$error":"#DIV/0!"}]
["Bereitstellung von Infrastruktur / Geräten / Materialien / Räumen",{"$f":"COUNTIF(Datentabelle!BB:BB,\"Ja\")-1","v":0},{"$error":"#DIV/0!"}]
["Organisation von Veranstaltungen",{"$f":"COUNTIF(Datentabelle!BC:BC,\"Ja\")-1","v":0},{"$error":"#DIV/0!"}]
["Angebote für religiöses oder weltanschauliches Gemeinschaftsleben",{"$f":"COUNTIF(Datentabelle!BD:BD,\"Ja\")-1","v":0},{"$error":"#DIV/0!"}]
["“Offene Tür“",{"$f":"COUNTIF(Datentabelle!BE:BE,\"Ja\")-1","v":0},{"$error":"#DIV/0!"}]
["Sonstige",{"$f":"COUNTA(Datentabelle!BF:BF)-1","v":0},{"$error":"#DIV/0!"}]
[null,{"$f":"SUM(B5:B20)","v":0}]
[]
["SONSTIGE:"]

{"sheet":"Altersgruppen","index":11,"n_rows":14,"n_cols":3,"rows_kept":14,"cut":false,"hidden":false,"merged":[]}
["\"Richtet sich die Arbeit Ihrer Einrichtung / Organisation an eine oder mehrere der folgenden Altersgruppen?\""]
["Mehrfachantwort möglich"]
[]
["Antwortmöglichkeit","Absolut","Relativ"]
["unter 5 Jahre",{"$f":"COUNTIF(Datentabelle!BG:BG,\"Ja\")-1","v":0},{"$f":"B5/$B$14","v":{"$error":"#DIV/0!"}}]
["5-12 Jahre",{"$f":"COUNTIF(Datentabelle!BH:BH,\"Ja\")-1","v":0},{"$f":"B6/$B$14","v":{"$error":"#DIV/0!"}}]
["13-19 Jahre",{"$f":"COUNTIF(Datentabelle!BI:BI,\"Ja\")-1","v":0},{"$error":"#DIV/0!"}]
["20-26 Jahre",{"$f":"COUNTIF(Datentabelle!BJ:BJ,\"Ja\")-1","v":0},{"$error":"#DIV/0!"}]
["27-50 Jahre",{"$f":"COUNTIF(Datentabelle!BK:BK,\"Ja\")-1","v":0},{"$error":"#DIV/0!"}]
["51-65 Jahre",{"$f":"COUNTIF(Datentabelle!BL:BL,\"Ja\")-1","v":0},{"$error":"#DIV/0!"}]
["66-80 Jahre",{"$f":"COUNTIF(Datentabelle!BM:BM,\"Ja\")-1","v":0},{"$error":"#DIV/0!"}]
[">80 Jahre",{"$f":"COUNTIF(Datentabelle!BN:BN,\"Ja\")-1","v":0},{"$error":"#DIV/0!"}]
["keine besondere Altersgruppe",{"$f":"COUNTIF(Datentabelle!BO:BO,\"Ja\")-1","v":0},{"$error":"#DIV/0!"}]
[null,{"$f":"SUM(B5:B13)","v":0}]

{"sheet":"Zielgruppen","index":12,"n_rows":16,"n_cols":3,"rows_kept":16,"cut":false,"hidden":false,"merged":[]}
["\"Richtet sich die Arbeit Ihrer Einrichtung / Organisation an eine bestimmte Zielgruppe?\""]
["Mehrfachantwort möglich"]
[]
["Antwortmöglichkeit","Absolut","Relativ"]
["Nein, die Arbeit unserer Organisation richtet sich an keine bestimmte Zielgrupp",{"$f":"COUNTIF(Datentabelle!BP:BP,\"Ja\")-1","v":0},{"$f":"B5/$B$14","v":{"$error":"#DIV/0!"}}]
["Kinder und Jugendliche",{"$f":"COUNTIF(Datentabelle!BQ:BQ,\"Ja\")-1","v":0},{"$f":"B6/$B$14","v":{"$error":"#DIV/0!"}}]
["Menschen mit Migrationshintergrund",{"$f":"COUNTIF(Datentabelle!BR:BR,\"Ja\")-1","v":0},{"$error":"#DIV/0!"}]
["Flüchtlinge",{"$f":"COUNTIF(Datentabelle!BS:BS,\"Ja\")-1","v":0},{"$error":"#DIV/0!"}]
["Sozial schwächer gestellte Menschen",{"$f":"COUNTIF(Datentabelle!BT:BT,\"Ja\")-1","v":0},{"$error":"#DIV/0!"}]
["Hilfe- und pflegebedürftige Menschen",{"$f":"COUNTIF(Datentabelle!BU:BU,\"Ja\")-1","v":0},{"$error":"#DIV/0!"}]
["Menschen mit Behinderung",{"$f":"COUNTIF(Datentabelle!BV:BV,\"Ja\")-1","v":0},{"$error":"#DIV/0!"}]
["Familien",{"$f":"COUNTIF(Datentabelle!BW:BW,\"Ja\")-1","v":0},{"$error":"#DIV/0!"}]
["Sonstige",{"$f":"COUNTA(Datentabelle!BX:BX)-1","v":0},{"$error":"#DIV/0!"}]
[null,{"$f":"SUM(B5:B13)","v":0}]
[]
["SONSTIGE:"]

{"sheet":"Anzahl","index":13,"n_rows":36,"n_cols":2,"rows_kept":36,"cut":false,"hidden":false,"merged":[]}
["\"Wie viele Kinder / Jugendliche nutzen die Leistungen,…\""]
[]
[]
["… die täglich von Ihnen angeboten werden?"]
[]
["Anzahl Einrichtungen:",{"$f":"COUNTIF(Datentabelle!BY$2:BY$52,\">0\")","v":0}]
["Durchschnitt betreute Kinder/Jugendliche:",{"$f":"AVERAGE(Datentabelle!BY:BY)","v":{"$error":"#DIV/0!"}}]
["Median:",{"$f":"MEDIAN(Datentabelle!BY$2:BY$52)","v":{"$error":"#NUM!"}}]
[]
[]
[]
[]
[]
["… die wöchentlich von Ihnen angeboten werden?"]
[]
["Anzahl Einrichtungen:",{"$f":"COUNTIF(Datentabelle!BZ$2:BZ$52,\">0\")","v":0}]
["Durchschnitt betreute Kinder/Jugendliche:",{"$f":"AVERAGE(Datentabelle!BZ$2:BZ$52)","v":{"$error":"#DIV/0!"}}]
["Median:",{"$f":"MEDIAN(Datentabelle!BZ$2:BZ$52)","v":{"$error":"#NUM!"}}]
[]
[]
[]
[]
[]
[]
["… die monatlich von Ihnen angeboten werden?"]
[]
["Anzahl Einrichtungen:",{"$f":"COUNTIF(Datentabelle!CA$2:CA$52,\">0\")","v":0}]
["Durchschnitt betreute Kinder/Jugendliche:",{"$f":"AVERAGE(Datentabelle!CA$2:CA$52)","v":{"$error":"#DIV/0!"}}]
["Median:",{"$f":"MEDIAN(Datentabelle!CA$2:CA$52)","v":{"$error":"#NUM!"}}]
[]
[]
["… die jährlich von Ihnen angeboten werden?"]
[]
["Anzahl Einrichtungen:",{"$f":"COUNTIF(Datentabelle!CB$2:CB$52,\">0\")","v":0}]
["Durchschnitt betreute Kinder/Jugendliche:",{"$f":"AVERAGE(Datentabelle!CB$2:CB$52)","v":{"$error":"#DIV/0!"}}]
["Median:",{"$f":"MEDIAN(Datentabelle!CB$2:CB$52)","v":{"$error":"#NUM!"}}]

{"sheet":"Beteiligung ZG","index":14,"n_rows":14,"n_cols":3,"rows_kept":14,"cut":false,"hidden":false,"merged":[]}
["\"In welcher Art und Weise werden Zielgruppen bei der Planung und Umsetzung von Maßnahmen in Ihrer Einrichtung / Organisation beteiligt?\""]
["Mehrfachantwort möglich"]
[]
["Antwortmöglichkeit","Absolut","Relativ"]
["Keine Beteiligung",{"$f":"COUNTIF(Datentabelle!CC:CC,\"Ja\")-1","v":0},{"$f":"B5/$B$11","v":{"$error":"#DIV/0!"}}]
["Information",{"$f":"COUNTIF(Datentabelle!CD:CD,\"Ja\")-1","v":0},{"$f":"B6/$B$11","v":{"$error":"#DIV/0!"}}]
["Mitwirkung",{"$f":"COUNTIF(Datentabelle!CE:CE,\"Ja\")-1","v":0},{"$error":"#DIV/0!"}]
["Mitbestimmung bei Entscheidungen",{"$f":"COUNTIF(Datentabelle!CF:CF,\"Ja\")-1","v":0},{"$error":"#DIV/0!"}]
["Selbstbestimmung",{"$f":"COUNTIF(Datentabelle!CG:CG,\"Ja\")-1","v":0},{"$error":"#DIV/0!"}]
["Sonstige",{"$f":"COUNTA(Datentabelle!CH:CH)-1","v":0},{"$error":"#DIV/0!"}]
[null,{"$f":"SUM(B5:B10)","v":0}]
[]
[]
["SONSTIGE:"]

{"sheet":"Kooperation","index":15,"n_rows":8,"n_cols":3,"rows_kept":8,"cut":false,"hidden":false,"merged":[]}
["\"Arbeitet Ihre Einrichtung mit anderen Einrichtungen und Organisationen zusammen?\""]
[]
[]
["Antwortmöglichkeit","Absolut","Relativ"]
["Ja",{"$f":"COUNTIF(Datentabelle!CI:CI,\"Ja\")-1","v":0},{"$f":"B5/$B$8","v":{"$error":"#DIV/0!"}}]
["Nein",{"$f":"COUNTIF(Datentabelle!CI:CI,\"Nein\")-1","v":0},{"$f":"B6/$B$8","v":{"$error":"#DIV/0!"}}]
["Übersprungen",{"$f":"COUNTIF(Datentabelle!CI:CI,\"k.a.\")-1","v":0},{"$error":"#DIV/0!"}]
[null,{"$f":"SUM(B5:B7)","v":0}]

{"sheet":"Koop. Wer","index":16,"n_rows":24,"n_cols":12,"rows_kept":24,"cut":false,"hidden":false,"merged":[]}
["\"Mit wem arbeitet Ihre Einrichtung / Organisation regelmäßig zusammen?\""]
["Mehrfachantwort möglich"]
[]
["Antwortmöglichkeit","Absolut","Relativ","Relativ",null,"Absolut","Falls eine Zusammenarbeit besteht: Wie stufen Sie diese Zusammenarbeit ein?"]
[null,"(alle TN)","(alle TN)","(beantwortet)",null,null,"sehr gut","eher gut","teils / teils","eher nicht gut","nicht gut"]
["Unternehmen",{"$f":"COUNTIF(Datentabelle!CJ:CJ,\"Ja\")-1","v":0},{"$f":"B6/$B$15","v":{"$error":"#DIV/0!"}},{"$f":"B6/($B$15-$B$14)","v":{"$error":"#DIV/0!"}},null,null,{"$f":"COUNTIF(Datentabelle!$CR:$CR,\"sehr gut\")-1","v":0},{"$f":"COUNTIF(Datentabelle!$CR:$CR,\"eher gut\")-1","v":0},{"$f":"COUNTIF(Datentabelle!$CR:$CR,\"teils / teils\")-1","v":0},{"$f":"COUNTIF(Datentabelle!$CR:$CR,\"eher nicht gut\")-1","v":0},{"$f":"COUNTIF(Datentabelle!$CR:$CR,\"nicht gut\")-1","v":0}]
["Freiwilligenagenturen",{"$f":"COUNTIF(Datentabelle!CK:CK,\"Ja\")-1","v":0},{"$f":"B7/$B$15","v":{"$error":"#DIV/0!"}},{"$f":"B7/($B$15-$B$14)","v":{"$error":"#DIV/0!"}},null,null,{"$f":"COUNTIF(Datentabelle!$CS:$CS,\"sehr gut\")-1","v":0},{"$f":"COUNTIF(Datentabelle!$CS:$CS,\"eher gut\")-1","v":0},{"$f":"COUNTIF(Datentabelle!$CS:$CS,\"teils / teils\")-1","v":0},{"$f":"COUNTIF(Datentabelle!$CS:$CS,\"eher nicht gut\")-1","v":0},{"$f":"COUNTIF(Datentabelle!$CS:$CS,\"nicht gut\")-1","v":0}]
["Mehrgenerationenhäuser",{"$f":"COUNTIF(Datentabelle!CL:CL,\"Ja\")-1","v":0},{"$error":"#DIV/0!"},{"$error":"#DIV/0!"},null,null,{"$f":"COUNTIF(Datentabelle!$CT:$CT,\"sehr gut\")-1","v":0},{"$f":"COUNTIF(Datentabelle!$CT:$CT,\"eher gut\")-1","v":0},{"$f":"COUNTIF(Datentabelle!$CT:$CT,\"teils / teils\")-1","v":0},{"$f":"COUNTIF(Datentabelle!$CT:$CT,\"eher nicht gut\")-1","v":0},{"$f":"COUNTIF(Datentabelle!$CT:$CT,\"nicht gut\")-1","v":0}]
["Bildungseinrichtungen",{"$f":"COUNTIF(Datentabelle!CM:CM,\"Ja\")-1","v":0},{"$f":"B14/$B$15","v":{"$error":"#DIV/0!"}},{"$error":"#DIV/0!"},null,null,{"$f":"COUNTIF(Datentabelle!$CU:$CU,\"sehr gut\")-1","v":0},{"$f":"COUNTIF(Datentabelle!$CU:$CU,\"eher gut\")-1","v":0},{"$f":"COUNTIF(Datentabelle!$CU:$CU,\"teils / teils\")-1","v":0},{"$f":"COUNTIF(Datentabelle!$CU:$CU,\"eher nicht gut\")-1","v":0},{"$f":"COUNTIF(Datentabelle!$CU:$CU,\"nicht gut\")-1","v":0}]
["Gemeinnützige Organisationen",{"$f":"COUNTIF(Datentabelle!CN:CN,\"Ja\")-1","v":0},{"$error":"#DIV/0!"},{"$error":"#DIV/0!"},null,null,{"$f":"COUNTIF(Datentabelle!$CV:$CV,\"sehr gut\")-1","v":0},{"$f":"COUNTIF(Datentabelle!$CV:$CV,\"eher gut\")-1","v":0},{"$f":"COUNTIF(Datentabelle!$CV:$CV,\"teils / teils\")-1","v":0},{"$f":"COUNTIF(Datentabelle!$CV:$CV,\"eher nicht gut\")-1","v":0},{"$f":"COUNTIF(Datentabelle!$CV:$CV,\"nicht gut\")-1","v":0}]
["Kirchen",{"$f":"COUNTIF(Datentabelle!CO:CO,\"Ja\")-1","v":0},{"$error":"#DIV/0!"},{"$error":"#DIV/0!"},null,null,{"$f":"COUNTIF(Datentabelle!$CW:$CW,\"sehr gut\")-1","v":0},{"$f":"COUNTIF(Datentabelle!$CW:$CW,\"eher gut\")-1","v":0},{"$f":"COUNTIF(Datentabelle!$CW:$CW,\"teils / teils\")-1","v":0},{"$f":"COUNTIF(Datentabelle!$CW:$CW,\"eher nicht gut\")-1","v":0},{"$f":"COUNTIF(Datentabelle!$CW:$CW,\"nicht gut\")-1","v":0}]
["Kommune",{"$f":"COUNTIF(Datentabelle!CP:CP,\"Ja\")-1","v":0},{"$error":"#DIV/0!"},{"$error":"#DIV/0!"},null,null,{"$f":"COUNTIF(Datentabelle!$CX:$CX,\"sehr gut\")-1","v":0},{"$f":"COUNTIF(Datentabelle!$CX:$CX,\"eher gut\")-1","v":0},{"$f":"COUNTIF(Datentabelle!$CX:$CX,\"teils / teils\")-1","v":0},{"$f":"COUNTIF(Datentabelle!$CX:$CX,\"eher nicht gut\")-1","v":0},{"$f":"COUNTIF(Datentabelle!$CX:$CX,\"nicht gut\")-1","v":0}]
["Sonstige",{"$f":"COUNTA(Datentabelle!CQ:CQ)-1","v":0},{"$error":"#DIV/0!"},{"$error":"#DIV/0!"}]
["Frage übersprungen",{"$f":"COUNTIF(Datentabelle!CJ:CJ,\"k.a.\")-1","v":0},{"$f":"B14/$B$15","v":{"$error":"#DIV/0!"}}]
[null,{"$f":"SUM(B6:B14)","v":0}]
[null,null,null,null,null,"Relativ (% d. abgeg. Stimmen)","Falls eine Zusammenarbeit besteht: Wie stufen Sie diese Zusammenarbeit ein?"]
[null,null,null,null,null,null,"sehr gut","eher gut","teils/ teils","eher schlecht","sehr schlecht","Summe sehr/eher gut"]
["SONSTIGE:",null,null,null,null,"Unternehmen",{"$f":"(G6/$B6)","v":{"$error":"#DIV/0!"}},{"$f":"H6/$B6","v":{"$error":"#DIV/0!"}},{"$f":"I6/$B6","v":{"$error":"#DIV/0!"}},{"$f":"J6/$B6","v":{"$error":"#DIV/0!"}},{"$f":"K6/$B6","v":{"$error":"#DIV/0!"}},{"$f":"G18+H18","v":{"$error":"#DIV/0!"}}]
[null,null,null,null,null,"Freiwilligenagenturen",{"$f":"(G7/$B7)","v":{"$error":"#DIV/0!"}},{"$f":"H7/$B7","v":{"$error":"#DIV/0!"}},{"$error":"#DIV/0!"},{"$error":"#DIV/0!"},{"$error":"#DIV/0!"},{"$f":"G19+H19","v":{"$error":"#DIV/0!"}}]
[null,null,null,null,null,"Mehrgenerationenhäuser",{"$error":"#DIV/0!"},{"$error":"#DIV/0!"},{"$error":"#DIV/0!"},{"$error":"#DIV/0!"},{"$error":"#DIV/0!"},{"$error":"#DIV/0!"}]
[null,null,null,null,null,"Bildungseinrichtungen",{"$error":"#DIV/0!"},{"$error":"#DIV/0!"},{"$error":"#DIV/0!"},{"$error":"#DIV/0!"},{"$error":"#DIV/0!"},{"$error":"#DIV/0!"}]
[null,null,null,null,null,"Andere gemeinnützige Organisationen",{"$error":"#DIV/0!"},{"$error":"#DIV/0!"},{"$error":"#DIV/0!"},{"$error":"#DIV/0!"},{"$error":"#DIV/0!"},{"$error":"#DIV/0!"}]
[null,null,null,null,null,"Kirchen",{"$f":"(G11/$B11)","v":{"$error":"#DIV/0!"}},{"$error":"#DIV/0!"},{"$error":"#DIV/0!"},{"$error":"#DIV/0!"},{"$error":"#DIV/0!"},{"$error":"#DIV/0!"}]
[null,null,null,null,null,"Kommune",{"$f":"(G12/$B12)","v":{"$error":"#DIV/0!"}},{"$error":"#DIV/0!"},{"$error":"#DIV/0!"},{"$f":"J12/$B12","v":{"$error":"#DIV/0!"}},{"$f":"K12/$B12","v":{"$error":"#DIV/0!"}},{"$error":"#DIV/0!"}]

{"sheet":"Koop.Partner","index":17,"n_rows":1,"n_cols":1,"rows_kept":1,"cut":false,"hidden":false,"merged":[]}
["\"Bitte nennen Sie namentlich die maximal FÜNF wichtigsten Einrichtungen / Organisationen, mit denen Sie zusammenarbeiten:\""]

{"sheet":"Koop. Wirkung","index":19,"n_rows":34,"n_cols":8,"rows_kept":34,"cut":false,"hidden":false,"merged":[[3,1,4,1],[3,5,4,5],[3,4,4,4],[3,6,4,6],[20,1,21,1],[20,4,21,4],[20,5,21,5],[20,6,21,6],[20,2,21,2],[20,3,21,3],[3,2,4,2],[3,3,4,3]]}
["\"Welche Wirkung erreichen Sie durch diese Zusammenarbeit?\""]
[]
[]
["Absolut","trifft voll und ganz zu","trifft eher zu","teils / teils","trifft eher nicht zu","trifft ganz und gar nicht zu","k.A."]
[]
["Informationsaustausch",{"$f":"COUNTIF(Datentabelle!$DD:$DD,B$4)-1","v":0},{"$f":"COUNTIF(Datentabelle!$DD:$DD,C$4)-1","v":0},{"$f":"COUNTIF(Datentabelle!$DD:$DD,D$4)-1","v":0},{"$f":"COUNTIF(Datentabelle!$DD:$DD,E$4)-1","v":0},{"$f":"COUNTIF(Datentabelle!$DD:$DD,F$4)-1","v":0},{"$f":"COUNTIF(Datentabelle!$DD:$DD,G$4)-1","v":0}]
["Gegenseitige Abstimmung der Arbeit",{"$f":"COUNTIF(Datentabelle!$DE:$DE,B$4)-1","v":0},{"$f":"COUNTIF(Datentabelle!$DE:$DE,C$4)-1","v":0},{"$f":"COUNTIF(Datentabelle!$DE:$DE,D$4)-1","v":0},{"$f":"COUNTIF(Datentabelle!$DE:$DE,E$4)-1","v":0},{"$f":"COUNTIF(Datentabelle!$DE:$DE,F$4)-1","v":0},{"$f":"COUNTIF(Datentabelle!$DE:$DE,G$4)-1","v":0}]
["Orientierung an gemeinsamen Zielen",{"$f":"COUNTIF(Datentabelle!$DF:$DF,B$4)-1","v":0},{"$f":"COUNTIF(Datentabelle!$DF:$DF,C$4)-1","v":0},{"$f":"COUNTIF(Datentabelle!$DF:$DF,D$4)-1","v":0},{"$f":"COUNTIF(Datentabelle!$DF:$DF,E$4)-1","v":0},{"$f":"COUNTIF(Datentabelle!$DF:$DF,F$4)-1","v":0},{"$f":"COUNTIF(Datentabelle!$DF:$DF,G$4)-1","v":0}]
["Gemeinsame Veranstaltungen",{"$f":"COUNTIF(Datentabelle!$DG:$DG,B$4)-1","v":0},{"$f":"COUNTIF(Datentabelle!$DG:$DG,C$4)-1","v":0},{"$f":"COUNTIF(Datentabelle!$DG:$DG,D$4)-1","v":0},{"$f":"COUNTIF(Datentabelle!$DG:$DG,E$4)-1","v":0},{"$f":"COUNTIF(Datentabelle!$DG:$DG,F$4)-1","v":0},{"$f":"COUNTIF(Datentabelle!$DG:$DG,G$4)-1","v":0}]
["Gemeinsame Nutzung von Räumen und Infrastruktur",{"$f":"COUNTIF(Datentabelle!$DH:$DH,B$4)-1","v":0},{"$f":"COUNTIF(Datentabelle!$DH:$DH,C$4)-1","v":0},{"$f":"COUNTIF(Datentabelle!$DH:$DH,D$4)-1","v":0},{"$f":"COUNTIF(Datentabelle!$DH:$DH,E$4)-1","v":0},{"$f":"COUNTIF(Datentabelle!$DH:$DH,F$4)-1","v":0},{"$f":"COUNTIF(Datentabelle!$DH:$DH,G$4)-1","v":0}]
["Gemeinsame Akquise von Ehrenamtlichen",{"$f":"COUNTIF(Datentabelle!$DI:$DI,B$4)-1","v":0},{"$f":"COUNTIF(Datentabelle!$DI:$DI,C$4)-1","v":0},{"$f":"COUNTIF(Datentabelle!$DI:$DI,D$4)-1","v":0},{"$f":"COUNTIF(Datentabelle!$DI:$DI,E$4)-1","v":0},{"$f":"COUNTIF(Datentabelle!$DI:$DI,F$4)-1","v":0},{"$f":"COUNTIF(Datentabelle!$DI:$DI,G$4)-1","v":0}]
["Ein besserer Kontakt zur Zielgruppe",{"$f":"COUNTIF(Datentabelle!$DJ:$DJ,B$4)-1","v":0},{"$f":"COUNTIF(Datentabelle!$DJ:$DJ,C$4)-1","v":0},{"$f":"COUNTIF(Datentabelle!$DJ:$DJ,D$4)-1","v":0},{"$f":"COUNTIF(Datentabelle!$DJ:$DJ,E$4)-1","v":0},{"$f":"COUNTIF(Datentabelle!$DJ:$DJ,F$4)-1","v":0},{"$f":"COUNTIF(Datentabelle!$DJ:$DJ,G$4)-1","v":0}]
["Gemeinsame Interessenvertretung",{"$f":"COUNTIF(Datentabelle!$DK:$DK,B$4)-1","v":0},{"$f":"COUNTIF(Datentabelle!$DK:$DK,C$4)-1","v":0},{"$f":"COUNTIF(Datentabelle!$DK:$DK,D$4)-1","v":0},{"$f":"COUNTIF(Datentabelle!$DK:$DK,E$4)-1","v":0},{"$f":"COUNTIF(Datentabelle!$DK:$DK,F$4)-1","v":0},{"$f":"COUNTIF(Datentabelle!$DK:$DK,G$4)-1","v":0}]
["Gemeinsame Öffentlichkeitsarbeit",{"$f":"COUNTIF(Datentabelle!$DL:$DL,B$4)-1","v":0},{"$f":"COUNTIF(Datentabelle!$DL:$DL,C$4)-1","v":0},{"$f":"COUNTIF(Datentabelle!$DL:$DL,D$4)-1","v":0},{"$f":"COUNTIF(Datentabelle!$DL:$DL,E$4)-1","v":0},{"$f":"COUNTIF(Datentabelle!$DL:$DL,F$4)-1","v":0},{"$f":"COUNTIF(Datentabelle!$DL:$DL,G$4)-1","v":0}]
["Gemeinsame Projekte",{"$f":"COUNTIF(Datentabelle!$DM:$DM,B$4)-1","v":0},{"$f":"COUNTIF(Datentabelle!$DM:$DM,C$4)-1","v":0},{"$f":"COUNTIF(Datentabelle!$DM:$DM,D$4)-1","v":0},{"$f":"COUNTIF(Datentabelle!$DM:$DM,E$4)-1","v":0},{"$f":"COUNTIF(Datentabelle!$DM:$DM,F$4)-1","v":0},{"$f":"COUNTIF(Datentabelle!$DM:$DM,G$4)-1","v":0}]
["Eine kommunale Verankerung",{"$f":"COUNTIF(Datentabelle!$DN:$DN,B$4)-1","v":0},{"$f":"COUNTIF(Datentabelle!$DN:$DN,C$4)-1","v":0},{"$f":"COUNTIF(Datentabelle!$DN:$DN,D$4)-1","v":0},{"$f":"COUNTIF(Datentabelle!$DN:$DN,E$4)-1","v":0},{"$f":"COUNTIF(Datentabelle!$DN:$DN,F$4)-1","v":0},{"$f":"COUNTIF(Datentabelle!$DN:$DN,G$4)-1","v":0}]
["Zusätzliche Finanzquellen",{"$f":"COUNTIF(Datentabelle!$DO:$DO,B$4)-1","v":0},{"$f":"COUNTIF(Datentabelle!$DO:$DO,C$4)-1","v":0},{"$f":"COUNTIF(Datentabelle!$DO:$DO,D$4)-1","v":0},{"$f":"COUNTIF(Datentabelle!$DO:$DO,E$4)-1","v":0},{"$f":"COUNTIF(Datentabelle!$DO:$DO,F$4)-1","v":0},{"$f":"COUNTIF(Datentabelle!$DO:$DO,G$4)-1","v":0}]
[]
[]
[]
["Relativ (% d. abgeg. Stimmen)","trifft voll und ganz zu","trifft eher zu","teils / teils","trifft eher nicht zu","trifft ganz und gar nicht zu","k.A."]
[null,null,null,null,null,null,null,"Summe trifft voll und ganz / eher zu"]
["Informationsaustausch",{"$f":"(B6/SUM($B6:$G6))","v":{"$error":"#DIV/0!"}},{"$f":"(C6/SUM($B$6:$G$6))","v":{"$error":"#DIV/0!"}},{"$error":"#DIV/0!"},{"$error":"#DIV/0!"},{"$error":"#DIV/0!"},{"$error":"#DIV/0!"},{"$f":"B23+C23","v":{"$error":"#DIV/0!"}}]
["Gegenseitige Abstimmung der Arbeit",{"$f":"(B7/SUM($B7:$G7))","v":{"$error":"#DIV/0!"}},{"$error":"#DIV/0!"},{"$error":"#DIV/0!"},{"$error":"#DIV/0!"},{"$error":"#DIV/0!"},{"$error":"#DIV/0!"},{"$f":"B24+C24","v":{"$error":"#DIV/0!"}}]
["Orientierung an gemeinsamen Zielen",{"$error":"#DIV/0!"},{"$error":"#DIV/0!"},{"$error":"#DIV/0!"},{"$error":"#DIV/0!"},{"$error":"#DIV/0!"},{"$error":"#DIV/0!"},{"$f":"B25+C25","v":{"$error":"#DIV/0!"}}]
["Gemeinsame Veranstaltungen",{"$error":"#DIV/0!"},{"$error":"#DIV/0!"},{"$error":"#DIV/0!"},{"$error":"#DIV/0!"},{"$error":"#DIV/0!"},{"$error":"#DIV/0!"},{"$f":"B26+C26","v":{"$error":"#DIV/0!"}}]
["Besserer Kontakt zur Zielgruppe",{"$error":"#DIV/0!"},{"$error":"#DIV/0!"},{"$error":"#DIV/0!"},{"$error":"#DIV/0!"},{"$error":"#DIV/0!"},{"$error":"#DIV/0!"},{"$f":"B27+C27","v":{"$error":"#DIV/0!"}}]
["Kommunale Verankerung",{"$error":"#DIV/0!"},{"$error":"#DIV/0!"},{"$error":"#DIV/0!"},{"$error":"#DIV/0!"},{"$error":"#DIV/0!"},{"$error":"#DIV/0!"},{"$f":"B28+C28","v":{"$error":"#DIV/0!"}}]
["Gemeinsame Projekte",{"$error":"#DIV/0!"},{"$error":"#DIV/0!"},{"$error":"#DIV/0!"},{"$error":"#DIV/0!"},{"$error":"#DIV/0!"},{"$error":"#DIV/0!"},{"$f":"B29+C29","v":{"$error":"#DIV/0!"}}]
["Gemeinsame Interessenvertretung",{"$error":"#DIV/0!"},{"$error":"#DIV/0!"},{"$error":"#DIV/0!"},{"$error":"#DIV/0!"},{"$error":"#DIV/0!"},{"$error":"#DIV/0!"},{"$error":"#DIV/0!"}]
["Gemeinsame Öffentlichkeitsarbeit",{"$error":"#DIV/0!"},{"$error":"#DIV/0!"},{"$error":"#DIV/0!"},{"$error":"#DIV/0!"},{"$error":"#DIV/0!"},{"$error":"#DIV/0!"},{"$error":"#DIV/0!"}]
["Zusätzliche Finanzquellen",{"$error":"#DIV/0!"},{"$error":"#DIV/0!"},{"$error":"#DIV/0!"},{"$error":"#DIV/0!"},{"$error":"#DIV/0!"},{"$error":"#DIV/0!"},{"$f":"B32+C32","v":{"$error":"#DIV/0!"}}]
["Gemeinsame Nutzung von Räumen und Infrastruktur",{"$error":"#DIV/0!"},{"$error":"#DIV/0!"},{"$error":"#DIV/0!"},{"$error":"#DIV/0!"},{"$error":"#DIV/0!"},{"$error":"#DIV/0!"},{"$f":"B33+C33","v":{"$error":"#DIV/0!"}}]
["Gemeinsame Akquise von Ehrenamtlichen",{"$error":"#DIV/0!"},{"$error":"#DIV/0!"},{"$error":"#DIV/0!"},{"$error":"#DIV/0!"},{"$error":"#DIV/0!"},{"$error":"#DIV/0!"},{"$f":"B34+C34","v":{"$error":"#DIV/0!"}}]

{"sheet":"Netzwerk","index":20,"n_rows":8,"n_cols":3,"rows_kept":8,"cut":false,"hidden":false,"merged":[]}
["\"Ist Ihre Zusammenarbeit durch ein Netzwerk organisiert?\""]
[]
[]
["Antwortmöglichkeit","Absolut","Relativ"]
["Ja",{"$f":"COUNTIF(Datentabelle!DP:DP,\"Ja\")-1","v":0},{"$f":"(B5/$B$8)","v":{"$error":"#DIV/0!"}}]
["Nein",{"$f":"COUNTIF(Datentabelle!DP:DP,\"Nein\")-1","v":0},{"$f":"(B6/$B$8)","v":{"$error":"#DIV/0!"}}]
["Übersprungen",{"$f":"COUNTIF(Datentabelle!DP:DP,\"k.a.\")-1","v":0},{"$f":"(B7/$B$8)","v":{"$error":"#DIV/0!"}}]
[null,{"$f":"SUM(B5:B7)","v":0}]

{"sheet":"Netzwerkname","index":21,"n_rows":1,"n_cols":1,"rows_kept":1,"cut":false,"hidden":false,"merged":[]}
["\"Wie lautet die Bezeichnung Ihres Netzwerkes?\""]

{"sheet":"Netzw. Wirkung","index":22,"n_rows":37,"n_cols":8,"rows_kept":37,"cut":false,"hidden":false,"merged":[[33,5,34,5],[3,2,4,2],[3,3,4,3],[33,1,34,1],[33,2,34,2],[33,3,34,3],[33,4,34,4],[3,6,4,6],[17,1,18,1],[17,2,18,2],[17,3,18,3],[17,4,18,4],[17,5,18,5],[3,1,4,1],[3,4,4,4],[3,5,4,5],[17,6,18,6]]}
["\"Bitte geben Sie an, inwieweit die folgenden Angaben zutreffen oder nicht.\""]
[]
[]
["Absolut","trifft voll und ganz zu","trifft eher zu","teils / teils","trifft eher nicht zu","trifft ganz und gar nicht zu","k.A."]
[]
["Das Netzwerk erleichtert die Zusammenarbeit mit anderen Einrichtungen und Organisationen.",{"$f":"COUNTIF(Datentabelle!$DR:$DR,B$4)-1","v":0},{"$f":"COUNTIF(Datentabelle!$DR:$DR,C$4)-1","v":0},{"$f":"COUNTIF(Datentabelle!$DR:$DR,D$4)-1","v":0},{"$f":"COUNTIF(Datentabelle!$DR:$DR,E$4)-1","v":0},{"$f":"COUNTIF(Datentabelle!$DR:$DR,F$4)-1","v":0},{"$f":"COUNTIF(Datentabelle!$DR:$DR,G$4)-1","v":0}]
["Das Netzwerk verringert die Konkurrenz zwischen den Einrichtungen und Organisationen.",{"$f":"COUNTIF(Datentabelle!$DS:$DS,B$4)-1","v":0},{"$f":"COUNTIF(Datentabelle!$DS:$DS,C$4)-1","v":0},{"$f":"COUNTIF(Datentabelle!$DS:$DS,D$4)-1","v":0},{"$f":"COUNTIF(Datentabelle!$DS:$DS,E$4)-1","v":0},{"$f":"COUNTIF(Datentabelle!$DS:$DS,F$4)-1","v":0},{"$f":"COUNTIF(Datentabelle!$DS:$DS,G$4)-1","v":0}]
["Das Netzwerk hilft den Einrichtungen und Organisationen, Ressourcen einzusparen.",{"$f":"COUNTIF(Datentabelle!$DT:$DT,B$4)-1","v":0},{"$f":"COUNTIF(Datentabelle!$DT:$DT,C$4)-1","v":0},{"$f":"COUNTIF(Datentabelle!$DT:$DT,D$4)-1","v":0},{"$f":"COUNTIF(Datentabelle!$DT:$DT,E$4)-1","v":0},{"$f":"COUNTIF(Datentabelle!$DT:$DT,F$4)-1","v":0},{"$f":"COUNTIF(Datentabelle!$DT:$DT,G$4)-1","v":0}]
["Das Netzwerk hilft, die Ziele unserer Organisation/Einrichtung zu erreichen.",{"$f":"COUNTIF(Datentabelle!$DU:$DU,B$4)-1","v":0},{"$f":"COUNTIF(Datentabelle!$DU:$DU,C$4)-1","v":0},{"$f":"COUNTIF(Datentabelle!$DU:$DU,D$4)-1","v":0},{"$f":"COUNTIF(Datentabelle!$DU:$DU,E$4)-1","v":0},{"$f":"COUNTIF(Datentabelle!$DU:$DU,F$4)-1","v":0},{"$f":"COUNTIF(Datentabelle!$DU:$DU,G$4)-1","v":0}]
["Im Netzwerk gibt es eine Arbeitsteilung zwischen den Einrichtungen und Organisationen.",{"$f":"COUNTIF(Datentabelle!$DV:$DV,B$4)-1","v":0},{"$f":"COUNTIF(Datentabelle!$DV:$DV,C$4)-1","v":0},{"$f":"COUNTIF(Datentabelle!$DV:$DV,D$4)-1","v":0},{"$f":"COUNTIF(Datentabelle!$DV:$DV,E$4)-1","v":0},{"$f":"COUNTIF(Datentabelle!$DV:$DV,F$4)-1","v":0},{"$f":"COUNTIF(Datentabelle!$DV:$DV,G$4)-1","v":0}]
["Das Vorhandensein einer Koordination leistet einen Beitrag zum Erfolg des Netzwerks.",{"$f":"COUNTIF(Datentabelle!$DW:$DW,B$4)-1","v":0},{"$f":"COUNTIF(Datentabelle!$DW:$DW,C$4)-1","v":0},{"$f":"COUNTIF(Datentabelle!$DW:$DW,D$4)-1","v":0},{"$f":"COUNTIF(Datentabelle!$DW:$DW,E$4)-1","v":0},{"$f":"COUNTIF(Datentabelle!$DW:$DW,F$4)-1","v":0},{"$f":"COUNTIF(Datentabelle!$DW:$DW,G$4)-1","v":0}]
["Das Netzwerk trägt zu einem flächendeckenden Angebot für Jugendliche bei.",{"$f":"COUNTIF(Datentabelle!$DX:$DX,B$4)-1","v":0},{"$f":"COUNTIF(Datentabelle!$DX:$DX,C$4)-1","v":0},{"$f":"COUNTIF(Datentabelle!$DX:$DX,D$4)-1","v":0},{"$f":"COUNTIF(Datentabelle!$DX:$DX,E$4)-1","v":0},{"$f":"COUNTIF(Datentabelle!$DX:$DX,F$4)-1","v":0},{"$f":"COUNTIF(Datentabelle!$DX:$DX,G$4)-1","v":0}]
["Wir haben im Netzwerk ein gemeinsames Ziel.",{"$f":"COUNTIF(Datentabelle!$DY:$DY,B$4)-1","v":0},{"$f":"COUNTIF(Datentabelle!$DY:$DY,C$4)-1","v":0},{"$f":"COUNTIF(Datentabelle!$DY:$DY,D$4)-1","v":0},{"$f":"COUNTIF(Datentabelle!$DY:$DY,E$4)-1","v":0},{"$f":"COUNTIF(Datentabelle!$DY:$DY,F$4)-1","v":0},{"$f":"COUNTIF(Datentabelle!$DY:$DY,G$4)-1","v":0}]
["Die Kooperation im Netzwerk wurde gemeinsam schriftlich verankert.",{"$f":"COUNTIF(Datentabelle!$DZ:$DZ,B$4)-1","v":0},{"$f":"COUNTIF(Datentabelle!$DZ:$DZ,C$4)-1","v":0},{"$f":"COUNTIF(Datentabelle!$DZ:$DZ,D$4)-1","v":0},{"$f":"COUNTIF(Datentabelle!$DZ:$DZ,E$4)-1","v":0},{"$f":"COUNTIF(Datentabelle!$DZ:$DZ,F$4)-1","v":0},{"$f":"COUNTIF(Datentabelle!$DZ:$DZ,G$4)-1","v":0}]
[]
[]
[]
["Relativ (% d. abgeg. Stimmen)","trifft voll und ganz zu","trifft eher zu","teils / teils","trifft eher nicht zu","trifft ganz und gar nicht zu","k.A."]
[null,null,null,null,null,null,null,"Summe trifft vollkommen / eher zu"]
["Das Netzwerk erleichtert die Zusammenarbeit mit anderen Einrichtungen und Organisationen.",{"$f":"(B6/SUM($B6:$G6))","v":{"$error":"#DIV/0!"}},{"$f":"(C6/SUM($B6:$G6))","v":{"$error":"#DIV/0!"}},{"$error":"#DIV/0!"},{"$error":"#DIV/0!"},{"$error":"#DIV/0!"},{"$error":"#DIV/0!"},{"$f":"B20+C20","v":{"$error":"#DIV/0!"}}]
["Das Netzwerk verringert die Konkurrenz zwischen den Einrichtungen und Organisationen.",{"$f":"(B7/SUM($B7:$G7))","v":{"$error":"#DIV/0!"}},{"$error":"#DIV/0!"},{"$error":"#DIV/0!"},{"$error":"#DIV/0!"},{"$error":"#DIV/0!"},{"$error":"#DIV/0!"},{"$error":"#DIV/0!"}]
["Das Netzwerk hilft den Einrichtungen und Organisationen, Ressourcen einzusparen.",{"$error":"#DIV/0!"},{"$error":"#DIV/0!"},{"$error":"#DIV/0!"},{"$error":"#DIV/0!"},{"$error":"#DIV/0!"},{"$error":"#DIV/0!"},{"$error":"#DIV/0!"}]
["Das Netzwerk hilft, die Ziele unserer Organisation/Einrichtung zu erreichen.",{"$error":"#DIV/0!"},{"$error":"#DIV/0!"},{"$error":"#DIV/0!"},{"$error":"#DIV/0!"},{"$error":"#DIV/0!"},{"$error":"#DIV/0!"},{"$error":"#DIV/0!"}]
["Im Netzwerk gibt es eine Arbeitsteilung zwischen den Einrichtungen und Organisationen.",{"$error":"#DIV/0!"},{"$error":"#DIV/0!"},{"$error":"#DIV/0!"},{"$error":"#DIV/0!"},{"$error":"#DIV/0!"},{"$error":"#DIV/0!"},{"$error":"#DIV/0!"}]
["Das Vorhandensein einer Koordination leistet einen Beitrag zum Erfolg des Netzwerks.",{"$error":"#DIV/0!"},{"$error":"#DIV/0!"},{"$error":"#DIV/0!"},{"$error":"#DIV/0!"},{"$f":"(F11/SUM($B11:$G11))","v":{"$error":"#DIV/0!"}},{"$error":"#DIV/0!"},{"$error":"#DIV/0!"}]
["Das Netzwerk trägt zu einem flächendeckenden Angebot für Jugendliche bei.",{"$error":"#DIV/0!"},{"$error":"#DIV/0!"},{"$error":"#DIV/0!"},{"$error":"#DIV/0!"},{"$error":"#DIV/0!"},{"$error":"#DIV/0!"},{"$error":"#DIV/0!"}]
["Wir haben im Netzwerk ein gemeinsames Ziel.",{"$error":"#DIV/0!"},{"$error":"#DIV/0!"},{"$error":"#DIV/0!"},{"$error":"#DIV/0!"},{"$error":"#DIV/0!"},{"$error":"#DIV/0!"},{"$error":"#DIV/0!"}]
["Die Kooperation im Netzwerk wurde gemeinsam schriftlich verankert.",{"$error":"#DIV/0!"},{"$error":"#DIV/0!"},{"$error":"#DIV/0!"},{"$error":"#DIV/0!"},{"$error":"#DIV/0!"},{"$error":"#DIV/0!"},{"$error":"#DIV/0!"}]
[]
[]
[]
[]
["\"Beurteilen Sie bitte Ihre Zufriedenheit mit der aktuellen Zielerreichung Ihres Netzwerks.\""]
[null,"voll und ganz zufrieden","eher zufrieden","teils / teils","eher nicht zufrieden","unzufrieden"]
[]
["Absolut",{"$f":"COUNTIF(Datentabelle!$EA:$EA,B34)-1","v":0},{"$f":"COUNTIF(Datentabelle!$EA:$EA,C34)-1","v":0},{"$f":"COUNTIF(Datentabelle!$EA:$EA,D34)-1","v":0},{"$f":"COUNTIF(Datentabelle!$EA:$EA,E34)-1","v":0},{"$f":"COUNTIF(Datentabelle!$EA:$EA,F34)-1","v":0}]
["Relativ (% d. abgeg. Stimmen)",{"$f":"(B36/SUM($B$36:$F$36))","v":{"$error":"#DIV/0!"}},{"$f":"(C36/SUM($B$36:$F$36))","v":{"$error":"#DIV/0!"}},{"$f":"(D36/SUM($B$36:$F$36))","v":{"$error":"#DIV/0!"}},{"$f":"(E36/SUM($B$36:$F$36))","v":{"$error":"#DIV/0!"}},{"$f":"(F36/SUM($B$36:$F$36))","v":{"$error":"#DIV/0!"}}]

{"sheet":"Beteiligung Netzw.","index":23,"n_rows":12,"n_cols":4,"rows_kept":12,"cut":false,"hidden":false,"merged":[]}
["\"In welcher Art und Weise wird Ihre Einrichtung / Organisation bei Entscheidungen des Netzwerks beteiligt?\""]
["Mehrfachantwort möglich"]
[]
["Antwortmöglichkeit","Absolut","Relativ","Relativ"]
[null,"(alle TN)","(alle TN)","(beantwortet)"]
["Information",{"$f":"COUNTIF(Datentabelle!EB:EB,\"Ja\")-1","v":0},{"$f":"B6/$B$12","v":{"$error":"#DIV/0!"}},{"$f":"B6/($B$12-$B$11)","v":{"$error":"#DIV/0!"}}]
["Möglichkeit zur Stellungnahme",{"$f":"COUNTIF(Datentabelle!EC:EC,\"Ja\")-1","v":0},{"$f":"B7/$B$12","v":{"$error":"#DIV/0!"}},{"$f":"B7/($B$12-$B$11)","v":{"$error":"#DIV/0!"}}]
["Befragung",{"$f":"COUNTIF(Datentabelle!ED:ED,\"Ja\")-1","v":0},{"$error":"#DIV/0!"},{"$error":"#DIV/0!"}]
["Stimmrecht",{"$f":"COUNTIF(Datentabelle!EE:EE,\"Ja\")-1","v":0},{"$error":"#DIV/0!"},{"$error":"#DIV/0!"}]
["Wir haben kein Interesse an Beteiligung!",{"$f":"COUNTIF(Datentabelle!EF:EF,\"Ja\")-1","v":0},{"$error":"#DIV/0!"},{"$error":"#DIV/0!"}]
["Frage übersprungen",{"$f":"COUNTIF(Datentabelle!EB:EB,\"k.a.\")-1","v":0},{"$error":"#DIV/0!"}]
[null,{"$f":"SUM(B6:B11)","v":0}]

{"sheet":"Koop. Kommune","index":24,"n_rows":8,"n_cols":3,"rows_kept":8,"cut":false,"hidden":false,"merged":[]}
["\"Sind Sie an einem Ausbau der Zusammenarbeit Ihrer Einrichtung / Organisation mit der Kommune interessiert?\""]
[]
[]
["Antwortmöglichkeit","Absolut","Relativ"]
["Ja",{"$f":"COUNTIF(Datentabelle!EG:EG,\"Ja\")-1","v":0},{"$f":"(B5/58)","v":0}]
["Nein",{"$f":"COUNTIF(Datentabelle!EG:EG,\"Nein\")-1","v":0},{"$f":"(B6/58)","v":0}]
["Übersprungen",{"$f":"COUNTIF(Datentabelle!EG:EG,\"k.a.\")-1","v":0},{"$f":"(B7/58)","v":0}]
[null,{"$f":"SUM(B5:B7)","v":0}]

{"sheet":"Aspekte Kommune","index":25,"n_rows":14,"n_cols":3,"rows_kept":14,"cut":false,"hidden":false,"merged":[]}
["\"Welche Aspekte sind Ihnen im Rahmen einer Zusammenarbeit mit der Kommune wichtig?\""]
["Mehrfachantwort möglich"]
[]
["Antwortmöglichkeit","Absolut","Relativ"]
["Informationen austauschen",{"$f":"COUNTIF(Datentabelle!EH:EH,\"Ja\")-1","v":0},{"$f":"B5/$B$14","v":{"$error":"#DIV/0!"}}]
["Arbeit miteinander abstimmen",{"$f":"COUNTIF(Datentabelle!EI:EI,\"Ja\")-1","v":0},{"$f":"B6/$B$14","v":{"$error":"#DIV/0!"}}]
["Veranstaltungen gemeinsam durchführen",{"$f":"COUNTIF(Datentabelle!EJ:EJ,\"Ja\")-1","v":0},{"$error":"#DIV/0!"}]
["Nutzung von Räumen & Infrastruktur",{"$f":"COUNTIF(Datentabelle!EK:EK,\"Ja\")-1","v":0},{"$error":"#DIV/0!"}]
["Netzwerkpartner gewinnen",{"$f":"COUNTIF(Datentabelle!EL:EL,\"Ja\")-1","v":0},{"$error":"#DIV/0!"}]
["Gemeinsam Projekte entwickeln",{"$f":"COUNTIF(Datentabelle!EM:EM,\"JA\")-1","v":0},{"$error":"#DIV/0!"}]
["Finanzielle Unterstützung",{"$f":"COUNTIF(Datentabelle!EN:EN,\"JA\")-1","v":0},{"$error":"#DIV/0!"}]
["Fort- und Weiterbildungskurse",{"$f":"COUNTIF(Datentabelle!EO:EO,\"JA\")-1","v":0},{"$error":"#DIV/0!"}]
["Mitbestimmung über kommunale Leistungen und Regelungen",{"$f":"COUNTIF(Datentabelle!EP:EP,\"JA\")-1","v":0},{"$error":"#DIV/0!"}]
[null,{"$f":"SUM(B5:B13)","v":0}]

{"sheet":"Anzahl MA","index":26,"n_rows":40,"n_cols":2,"rows_kept":40,"cut":false,"hidden":false,"merged":[]}
["\"Wie viele Hauptamtliche beschäftigt Ihre Einrichtung / Organisation?\""]
[]
["Insgesamt"]
[]
["Anzahl Einrichtungen:",{"$f":"COUNTIF(Datentabelle!EQ:EQ,\">0\")","v":0}]
["Durchschnitt Mitarbeiter:",{"$f":"AVERAGE(Datentabelle!EQ:EQ)","v":{"$error":"#DIV/0!"}}]
["Median:",{"$f":"MEDIAN(Datentabelle!EQ:EQ)","v":{"$error":"#NUM!"}}]
[]
[]
[]
[]
[]
["In der Kinder- und Jugendarbeit"]
[]
["Anzahl Einrichtungen:",{"$f":"COUNTIF(Datentabelle!ES:ES,\">0\")","v":0}]
["Durchschnitt Mitarbeiter:",{"$f":"AVERAGE(Datentabelle!ES:ES)","v":{"$error":"#DIV/0!"}}]
["Median:",{"$f":"MEDIAN(Datentabelle!ES:ES)","v":{"$error":"#NUM!"}}]
[]
[]
[]
[]
[]
["\"Wie viele Ehrenamtliche sind in Ihrer Einrichtung / Organisation engagiert?\""]
[]
["Insgesamt"]
[]
["Anzahl Einrichtungen:",{"$f":"COUNTIF(Datentabelle!ER:ER,\">0\")","v":0}]
["Durchschnitt Ehrenamtliche",{"$f":"AVERAGE(Datentabelle!ER:ER)","v":{"$error":"#DIV/0!"}}]
["Median:",{"$f":"MEDIAN(Datentabelle!ER:ER)","v":{"$error":"#NUM!"}}]
[]
[]
[]
[]
[]
[]
["In der Kinder- und Jugendarbeit"]
[]
["Anzahl Einrichtungen:",{"$f":"COUNTIF(Datentabelle!ET:ET,\">0\")","v":0}]
["Durchschnitt Ehrenamtliche",{"$f":"AVERAGE(Datentabelle!ET:ET)","v":{"$error":"#DIV/0!"}}]
["Median:",{"$f":"MEDIAN(Datentabelle!ET:ET)","v":{"$error":"#NUM!"}}]

{"sheet":"Leistungen Ehrenamt","index":27,"n_rows":19,"n_cols":4,"rows_kept":19,"cut":false,"hidden":false,"merged":[]}
["\"Welche der folgenden Leistungen erhalten Ehrenamtliche bei Ihnen?\""]
["Mehrfachantwort möglich"]
[]
["Antwortmöglichkeit","Absolut","Relativ","Relativ"]
[null,"(alle TN)","(alle TN)","(beantwortet)"]
["Formen der Anerkennung",{"$f":"COUNTIF(Datentabelle!EU:EU,\"Ja\")-1","v":0},{"$f":"B6/$B$19","v":{"$error":"#DIV/0!"}},{"$f":"B6/($B$19-$B$18)","v":{"$error":"#DIV/0!"}}]
["Ehrenamtscard",{"$f":"COUNTIF(Datentabelle!EV:EV,\"Ja\")-1","v":0},{"$f":"B7/$B$19","v":{"$error":"#DIV/0!"}},{"$f":"B7/($B$19-$B$18)","v":{"$error":"#DIV/0!"}}]
["Zertifikate für erworbene Fähigkeiten",{"$f":"COUNTIF(Datentabelle!EW:EW,\"Ja\")-1","v":0},{"$error":"#DIV/0!"},{"$error":"#DIV/0!"}]
["Möglichkeiten zur Fort- und Weiterbildung",{"$f":"COUNTIF(Datentabelle!EX:EX,\"Ja\")-1","v":0},{"$error":"#DIV/0!"},{"$error":"#DIV/0!"}]
["Kostenlose Nutzung der Infrastruktur",{"$f":"COUNTIF(Datentabelle!EY:EY,\"Ja\")-1","v":0},{"$error":"#DIV/0!"},{"$error":"#DIV/0!"}]
["Sachzuwendungen",{"$f":"COUNTIF(Datentabelle!EZ:EZ,\"JA\")-1","v":0},{"$error":"#DIV/0!"},{"$error":"#DIV/0!"}]
["Erstattung von Aufwendungen",{"$f":"COUNTIF(Datentabelle!FA:FA,\"JA\")-1","v":0},{"$error":"#DIV/0!"},{"$error":"#DIV/0!"}]
["Übungsleiterpauschale",{"$f":"COUNTIF(Datentabelle!FB:FB,\"JA\")-1","v":0},{"$error":"#DIV/0!"},{"$error":"#DIV/0!"}]
["Ehrenamtspauschale",{"$f":"COUNTIF(Datentabelle!FC:FC,\"JA\")-1","v":0},{"$error":"#DIV/0!"},{"$error":"#DIV/0!"}]
["Honorare",{"$f":"COUNTIF(Datentabelle!FD:FD,\"JA\")-1","v":0},{"$error":"#DIV/0!"},{"$error":"#DIV/0!"}]
["Keine",{"$f":"COUNTIF(Datentabelle!FE:FE,\"JA\")-1","v":0},{"$error":"#DIV/0!"},{"$error":"#DIV/0!"}]
["Sonstige",{"$f":"COUNTA(Datentabelle!FF:FF)-1","v":0},{"$error":"#DIV/0!"},{"$error":"#DIV/0!"}]
["Frage übersprungen",{"$f":"COUNTIF(Datentabelle!EU:EU,\"k.a.\")-1","v":0},{"$error":"#DIV/0!"}]
[null,{"$f":"SUM(B6:B18)","v":0}]

{"sheet":"Aufgaben","index":28,"n_rows":18,"n_cols":5,"rows_kept":18,"cut":false,"hidden":false,"merged":[[3,1,4,1],[3,2,4,2],[3,3,4,3],[12,1,13,1],[12,2,13,2],[12,3,13,3]]}
["Welche Aufgaben übernehmen die Ehrenamtlichen und Hauptamtlichen?"]
[]
[]
[null,"Freiwillig Engagierte","Hauptamtliche","Frw. Engagierte Hauptamtliche gemeinsam"]
["Absolut",null,null,null,"Anzahl gesamt"]
["Führung und Leitung der Organisation / Einrichtung",{"$f":"COUNTIF(Datentabelle!$FG:$FG,B$4)-1","v":0},{"$f":"COUNTIF(Datentabelle!$FG:$FG,C$4)-1","v":0},{"$f":"COUNTIF(Datentabelle!$FG:$FG,D$4)-1","v":0},{"$f":"SUM(B6:D6)","v":0}]
["Erbringung von Dienstleistungen,",{"$f":"COUNTIF(Datentabelle!$FH:$FH,B$4)-1","v":0},{"$f":"COUNTIF(Datentabelle!$FH:$FH,C$4)-1","v":0},{"$f":"COUNTIF(Datentabelle!$FH:$FH,D$4)-1","v":0},{"$f":"SUM(B7:D7)","v":0}]
["Konzeptionelle Tätigkeiten (z.B. Kampagnen- und Programmentwicklung)",{"$f":"COUNTIF(Datentabelle!$FI:$FI,B$4)-1","v":0},{"$f":"COUNTIF(Datentabelle!$FI:$FI,C$4)-1","v":0},{"$f":"COUNTIF(Datentabelle!$FI:$FI,D$4)-1","v":0},{"$f":"SUM(B8:D8)","v":0}]
["Verwaltung / administrative Tätigkeiten",{"$f":"COUNTIF(Datentabelle!$FJ:$FJ,B$4)-1","v":0},{"$f":"COUNTIF(Datentabelle!$FJ:$FJ,C$4)-1","v":0},{"$f":"COUNTIF(Datentabelle!$FJ:$FJ,D$4)-1","v":0},{"$f":"SUM(B9:D9)","v":0}]
[]
[]
[]
[null,"Freiwillig Engagierte","Hauptamtliche","Frw. Engagierte Hauptamtliche gemeinsam"]
["Relativ (% d. abgeg. Stimmen)"]
["Führung und Leitung der Organisation/Einrichtung",{"$f":"(B6/SUM($B6:$D6))","v":{"$error":"#DIV/0!"}},{"$f":"(C6/SUM($B$6:$D$6))","v":{"$error":"#DIV/0!"}},{"$f":"(D6/SUM($B$6:$D$6))","v":{"$error":"#DIV/0!"}}]
["Erbringung von Dienstleistungen",{"$f":"(B7/SUM($B7:$D7))","v":{"$error":"#DIV/0!"}},{"$error":"#DIV/0!"},{"$error":"#DIV/0!"}]
["Konzeptionelle Tätigkeiten (z.B. Kampagnen- und Programmentwicklung)",{"$error":"#DIV/0!"},{"$error":"#DIV/0!"},{"$error":"#DIV/0!"}]
["Verwaltung/administrative Tätigkeiten",{"$error":"#DIV/0!"},{"$error":"#DIV/0!"},{"$error":"#DIV/0!"}]

{"sheet":"Hauptamt","index":29,"n_rows":8,"n_cols":3,"rows_kept":8,"cut":false,"hidden":false,"merged":[]}
["\"Sind Sie als Hauptamtliche/r in Ihrer Einrichtung / Organisation tätig?\""]
[]
[]
["Antwortmöglichkeit","Absolut","Relativ"]
["Ja",{"$f":"COUNTIF(Datentabelle!FK:FK,\"Ja\")-1","v":0},{"$f":"B5/$B$8","v":{"$error":"#DIV/0!"}}]
["Nein",{"$f":"COUNTIF(Datentabelle!FK:FK,\"Nein\")-1","v":0},{"$f":"B6/$B$8","v":{"$error":"#DIV/0!"}}]
["Übersprungen",{"$f":"COUNTIF(Datentabelle!FK:FK,\"k.a.\")-1","v":0},{"$error":"#DIV/0!"}]
[null,{"$f":"SUM(B5:B7)","v":0}]

{"sheet":"Zusammenarbeit Ehrenamt","index":30,"n_rows":26,"n_cols":7,"rows_kept":26,"cut":false,"hidden":false,"merged":[[3,1,4,1],[3,4,4,4],[3,5,4,5],[3,6,4,6],[3,2,4,2],[3,3,4,3]]}
["\"Bitte geben Sie an, inwieweit Sie den folgenden Aussagen zur Zusammenarbeit von Ehrenamtlichen und Hauptamtlichen in Ihrer Einrichtung / Organisation zustimmen.\""]
[]
[]
[null,"trifft voll und ganz zu","trifft eher zu","teils / teils","trifft eher nicht zu","trifft ganz und gar nicht zu","k.A."]
["Absolut"]
["Ich bin mit der Zusammenarbeit mit den Ehrenamtlichen zufrieden.",{"$f":"COUNTIF(Datentabelle!$FL:$FL,B$4)-1","v":0},{"$f":"COUNTIF(Datentabelle!$FL:$FL,C$4)-1","v":0},{"$f":"COUNTIF(Datentabelle!$FL:$FL,D$4)-1","v":0},{"$f":"COUNTIF(Datentabelle!$FL:$FL,E$4)-1","v":0},{"$f":"COUNTIF(Datentabelle!$FL:$FL,F$4)-1","v":0},{"$f":"COUNTIF(Datentabelle!$FL:$FL,G$4)-1","v":0}]
["Ich arbeite eng mit den Ehrenamtlichen zusammen.",{"$f":"COUNTIF(Datentabelle!$FM:$FM,B$4)-1","v":0},{"$f":"COUNTIF(Datentabelle!$FM:$FM,C$4)-1","v":0},{"$f":"COUNTIF(Datentabelle!$FM:$FM,D$4)-1","v":0},{"$f":"COUNTIF(Datentabelle!$FM:$FM,E$4)-1","v":0},{"$f":"COUNTIF(Datentabelle!$FM:$FM,F$4)-1","v":0},{"$f":"COUNTIF(Datentabelle!$FM:$FM,G$4)-1","v":0}]
["Die Ehrenamtlichen entlasten die Hauptamtlichen.",{"$f":"COUNTIF(Datentabelle!$FN:$FN,B$4)-1","v":0},{"$f":"COUNTIF(Datentabelle!$FN:$FN,C$4)-1","v":0},{"$f":"COUNTIF(Datentabelle!$FN:$FN,D$4)-1","v":0},{"$f":"COUNTIF(Datentabelle!$FN:$FN,E$4)-1","v":0},{"$f":"COUNTIF(Datentabelle!$FN:$FN,F$4)-1","v":0},{"$f":"COUNTIF(Datentabelle!$FN:$FN,G$4)-1","v":0}]
["Die Ehrenamtlichen übernehmen zusätzliche Aufgaben.",{"$f":"COUNTIF(Datentabelle!$FO:$FO,B$4)-1","v":0},{"$f":"COUNTIF(Datentabelle!$FO:$FO,C$4)-1","v":0},{"$f":"COUNTIF(Datentabelle!$FO:$FO,D$4)-1","v":0},{"$f":"COUNTIF(Datentabelle!$FO:$FO,E$4)-1","v":0},{"$f":"COUNTIF(Datentabelle!$FO:$FO,F$4)-1","v":0},{"$f":"COUNTIF(Datentabelle!$FO:$FO,G$4)-1","v":0}]
["Die Zusammenarbeit mit Ehrenamtlichen bedeutet eine zusätzliche Belastung.",{"$f":"COUNTIF(Datentabelle!$FP:$FP,B$4)-1","v":0},{"$f":"COUNTIF(Datentabelle!$FP:$FP,C$4)-1","v":0},{"$f":"COUNTIF(Datentabelle!$FP:$FP,D$4)-1","v":0},{"$f":"COUNTIF(Datentabelle!$FP:$FP,E$4)-1","v":0},{"$f":"COUNTIF(Datentabelle!$FP:$FP,F$4)-1","v":0},{"$f":"COUNTIF(Datentabelle!$FP:$FP,G$4)-1","v":0}]
["Der Einsatz von Ehrenamtlichen ist nicht zuverlässig planbar.",{"$f":"COUNTIF(Datentabelle!$FQ:$FQ,B$4)-1","v":0},{"$f":"COUNTIF(Datentabelle!$FQ:$FQ,C$4)-1","v":0},{"$f":"COUNTIF(Datentabelle!$FQ:$FQ,D$4)-1","v":0},{"$f":"COUNTIF(Datentabelle!$FQ:$FQ,E$4)-1","v":0},{"$f":"COUNTIF(Datentabelle!$FQ:$FQ,F$4)-1","v":0},{"$f":"COUNTIF(Datentabelle!$FQ:$FQ,G$4)-1","v":0}]
["Ehrenamtliche liefern eine schlechtere Qualität in der Arbeit als Hauptamtliche.",{"$f":"COUNTIF(Datentabelle!$FR:$FR,B$4)-1","v":0},{"$f":"COUNTIF(Datentabelle!$FR:$FR,C$4)-1","v":0},{"$f":"COUNTIF(Datentabelle!$FR:$FR,D$4)-1","v":0},{"$f":"COUNTIF(Datentabelle!$FR:$FR,E$4)-1","v":0},{"$f":"COUNTIF(Datentabelle!$FR:$FR,F$4)-1","v":0},{"$f":"COUNTIF(Datentabelle!$FR:$FR,G$4)-1","v":0}]
["Der Einsatz von Ehrenamtlichen gefährdet Arbeitsplätze.",{"$f":"COUNTIF(Datentabelle!$FS:$FS,B$4)-1","v":0},{"$f":"COUNTIF(Datentabelle!$FS:$FS,C$4)-1","v":0},{"$f":"COUNTIF(Datentabelle!$FS:$FS,D$4)-1","v":0},{"$f":"COUNTIF(Datentabelle!$FS:$FS,E$4)-1","v":0},{"$f":"COUNTIF(Datentabelle!$FS:$FS,F$4)-1","v":0},{"$f":"COUNTIF(Datentabelle!$FS:$FS,G$4)-1","v":0}]
[]
[]
[]
[]
["Relativ (% d. abgeg. Stimmen)","trifft voll und ganz zu","trifft eher zu","teils / teils","trifft eher nicht zu","trifft ganz und gar nicht zu","k.A."]
["Ich bin mit der Zusammenarbeit mit den Ehrenamtlichen zufrieden.",{"$f":"(B6/SUM($B6:$G6))","v":{"$error":"#DIV/0!"}},{"$f":"(C6/SUM($B6:$G6))","v":{"$error":"#DIV/0!"}},{"$f":"(D6/SUM($B6:$G6))","v":{"$error":"#DIV/0!"}},{"$error":"#DIV/0!"},{"$error":"#DIV/0!"},{"$error":"#DIV/0!"}]
["Ich arbeite eng mit den Ehrenamtlichen zusammen.",{"$f":"(B7/SUM($B7:$G7))","v":{"$error":"#DIV/0!"}},{"$error":"#DIV/0!"},{"$error":"#DIV/0!"},{"$error":"#DIV/0!"},{"$error":"#DIV/0!"},{"$error":"#DIV/0!"}]
["Die Ehrenamtlichen entlasten die Hauptamtlichen.",{"$error":"#DIV/0!"},{"$error":"#DIV/0!"},{"$error":"#DIV/0!"},{"$error":"#DIV/0!"},{"$error":"#DIV/0!"},{"$error":"#DIV/0!"}]
["Die Ehrenamtlichen übernehmen zusätzliche Aufgaben.",{"$error":"#DIV/0!"},{"$error":"#DIV/0!"},{"$error":"#DIV/0!"},{"$error":"#DIV/0!"},{"$error":"#DIV/0!"},{"$error":"#DIV/0!"}]
["Die Zusammenarbeit mit Ehrenamtlichen bedeutet eine zusätzliche Belastung.",{"$error":"#DIV/0!"},{"$error":"#DIV/0!"},{"$error":"#DIV/0!"},{"$error":"#DIV/0!"},{"$error":"#DIV/0!"},{"$f":"(G10/SUM($B10:$G10))","v":{"$error":"#DIV/0!"}}]
["Der Einsatz von Ehrenamtlichen ist nicht zuverlässig planbar.",{"$error":"#DIV/0!"},{"$error":"#DIV/0!"},{"$error":"#DIV/0!"},{"$error":"#DIV/0!"},{"$error":"#DIV/0!"},{"$f":"(G11/SUM($B11:$G11))","v":{"$error":"#DIV/0!"}}]
["Ehrenamtliche liefern eine schlechtere Qualität in der Arbeit als Hauptamtliche.",{"$error":"#DIV/0!"},{"$error":"#DIV/0!"},{"$f":"(D12/SUM($B12:$G12))","v":{"$error":"#DIV/0!"}},{"$error":"#DIV/0!"},{"$error":"#DIV/0!"},{"$f":"(G12/SUM($B12:$G12))","v":{"$error":"#DIV/0!"}}]
["Der Einsatz von Ehrenamtlichen gefährdet Arbeitsplätze.",{"$error":"#DIV/0!"},{"$error":"#DIV/0!"},{"$error":"#DIV/0!"},{"$error":"#DIV/0!"},{"$error":"#DIV/0!"},{"$error":"#DIV/0!"}]

{"sheet":"Zivilgesellschaft","index":32,"n_rows":24,"n_cols":8,"rows_kept":24,"cut":false,"hidden":false,"merged":[[3,6,4,6],[3,1,4,1],[3,2,4,2],[3,3,4,3],[3,4,4,4],[3,5,4,5]]}
["\"Wie stehen Sie zu folgenden Aussagen zum Verhältnis von Zivilgesellschaft und Staat?\""]
[]
[]
["Absolut","trifft voll und ganz zu","trifft eher zu","teils / teils","trifft eher nicht zu","trifft ganz und gar nicht zu","k.A."]
["Die Zivilgesellschaft…"]
["...ersetzt staatliches Handeln nicht, sondern ergänzt es.",{"$f":"COUNTIF(Datentabelle!$FT:$FT,B$4)-1","v":0},{"$f":"COUNTIF(Datentabelle!$FT:$FT,C$4)-1","v":0},{"$f":"COUNTIF(Datentabelle!$FT:$FT,D$4)-1","v":0},{"$f":"COUNTIF(Datentabelle!$FT:$FT,E$4)-1","v":0},{"$f":"COUNTIF(Datentabelle!$FT:$FT,F$4)-1","v":0},{"$f":"COUNTIF(Datentabelle!$FT:$FT,G$4)-1","v":0}]
["...ermöglicht es Ehrenamtlichen, gesellschaftliche Verantwortung zu übernehmen.",{"$f":"COUNTIF(Datentabelle!$FU:$FU,B$4)-1","v":0},{"$f":"COUNTIF(Datentabelle!$FU:$FU,C$4)-1","v":0},{"$f":"COUNTIF(Datentabelle!$FU:$FU,D$4)-1","v":0},{"$f":"COUNTIF(Datentabelle!$FU:$FU,E$4)-1","v":0},{"$f":"COUNTIF(Datentabelle!$FU:$FU,F$4)-1","v":0},{"$f":"COUNTIF(Datentabelle!$FU:$FU,G$4)-1","v":0}]
["...bringt gesellschaftlichen Wandel voran.",{"$f":"COUNTIF(Datentabelle!$FV:$FV,B$4)-1","v":0},{"$f":"COUNTIF(Datentabelle!$FV:$FV,C$4)-1","v":0},{"$f":"COUNTIF(Datentabelle!$FV:$FV,D$4)-1","v":0},{"$f":"COUNTIF(Datentabelle!$FV:$FV,E$4)-1","v":0},{"$f":"COUNTIF(Datentabelle!$FV:$FV,F$4)-1","v":0},{"$f":"COUNTIF(Datentabelle!$FV:$FV,G$4)-1","v":0}]
["...bewahrt gesellschaftliche Errungenschaften.",{"$f":"COUNTIF(Datentabelle!$FW:$FW,B$4)-1","v":0},{"$f":"COUNTIF(Datentabelle!$FW:$FW,C$4)-1","v":0},{"$f":"COUNTIF(Datentabelle!$FW:$FW,D$4)-1","v":0},{"$f":"COUNTIF(Datentabelle!$FW:$FW,E$4)-1","v":0},{"$f":"COUNTIF(Datentabelle!$FW:$FW,F$4)-1","v":0},{"$f":"COUNTIF(Datentabelle!$FW:$FW,G$4)-1","v":0}]
["...leistet einen wichtigen Beitrag dazu, dass gesellschaftliche Aufgaben bewältigt werden.",{"$f":"COUNTIF(Datentabelle!$FX:$FX,B$4)-1","v":0},{"$f":"COUNTIF(Datentabelle!$FX:$FX,C$4)-1","v":0},{"$f":"COUNTIF(Datentabelle!$FX:$FX,D$4)-1","v":0},{"$f":"COUNTIF(Datentabelle!$FX:$FX,E$4)-1","v":0},{"$f":"COUNTIF(Datentabelle!$FX:$FX,F$4)-1","v":0},{"$f":"COUNTIF(Datentabelle!$FX:$FX,G$4)-1","v":0}]
["...wird vom Staat instrumentalisiert.",{"$f":"COUNTIF(Datentabelle!$FY:$FY,B$4)-1","v":0},{"$f":"COUNTIF(Datentabelle!$FY:$FY,C$4)-1","v":0},{"$f":"COUNTIF(Datentabelle!$FY:$FY,D$4)-1","v":0},{"$f":"COUNTIF(Datentabelle!$FY:$FY,E$4)-1","v":0},{"$f":"COUNTIF(Datentabelle!$FY:$FY,F$4)-1","v":0},{"$f":"COUNTIF(Datentabelle!$FY:$FY,G$4)-1","v":0}]
["...füllt die Lücken, die der Staat nicht ausfüllt.",{"$f":"COUNTIF(Datentabelle!$FZ:$FZ,B$4)-1","v":0},{"$f":"COUNTIF(Datentabelle!$FZ:$FZ,C$4)-1","v":0},{"$f":"COUNTIF(Datentabelle!$FZ:$FZ,D$4)-1","v":0},{"$f":"COUNTIF(Datentabelle!$FZ:$FZ,E$4)-1","v":0},{"$f":"COUNTIF(Datentabelle!$FZ:$FZ,F$4)-1","v":0},{"$f":"COUNTIF(Datentabelle!$FZ:$FZ,G$4)-1","v":0}]
[]
[]
[]
[]
["Relativ (% d. abgeg. Stimmen)","trifft voll und ganz zu","trifft eher zu","teils / teils","trifft eher nicht zu","trifft überhaupt nicht zu","keine Angabe","Summe trifft voll und ganz / eher zu"]
["...ersetzt staatliches Handeln nicht, sondern ergänzt es.",{"$f":"(B6/SUM($B6:$G6))","v":{"$error":"#DIV/0!"}},{"$f":"(C6/SUM($B6:$G6))","v":{"$error":"#DIV/0!"}},{"$error":"#DIV/0!"},{"$error":"#DIV/0!"},{"$error":"#DIV/0!"},{"$error":"#DIV/0!"},{"$f":"B18+C18","v":{"$error":"#DIV/0!"}}]
["...ermöglicht es Ehrenamtlichen, gesellschaftliche Verantwortung zu übernehmen.",{"$f":"(B7/SUM($B7:$G7))","v":{"$error":"#DIV/0!"}},{"$error":"#DIV/0!"},{"$error":"#DIV/0!"},{"$error":"#DIV/0!"},{"$error":"#DIV/0!"},{"$error":"#DIV/0!"},{"$f":"B19+C19","v":{"$error":"#DIV/0!"}}]
["...bringt gesellschaftlichen Wandel voran.",{"$error":"#DIV/0!"},{"$error":"#DIV/0!"},{"$error":"#DIV/0!"},{"$error":"#DIV/0!"},{"$error":"#DIV/0!"},{"$error":"#DIV/0!"},{"$error":"#DIV/0!"}]
["...bewahrt gesellschaftliche Errungenschaften.",{"$error":"#DIV/0!"},{"$error":"#DIV/0!"},{"$error":"#DIV/0!"},{"$error":"#DIV/0!"},{"$f":"(F9/SUM($B9:$G9))","v":{"$error":"#DIV/0!"}},{"$error":"#DIV/0!"},{"$error":"#DIV/0!"}]
["...leistet einen wichtigen Beitrag dazu, dass gesellschaftliche Aufgaben bewältigt werden.",{"$error":"#DIV/0!"},{"$error":"#DIV/0!"},{"$error":"#DIV/0!"},{"$error":"#DIV/0!"},{"$error":"#DIV/0!"},{"$error":"#DIV/0!"},{"$error":"#DIV/0!"}]
["...wird vom Staat instrumentalisiert.",{"$error":"#DIV/0!"},{"$error":"#DIV/0!"},{"$error":"#DIV/0!"},{"$error":"#DIV/0!"},{"$error":"#DIV/0!"},{"$error":"#DIV/0!"},{"$error":"#DIV/0!"}]
["...füllt die Lücken, die der Staat nicht ausfüllt.",{"$error":"#DIV/0!"},{"$error":"#DIV/0!"},{"$error":"#DIV/0!"},{"$error":"#DIV/0!"},{"$error":"#DIV/0!"},{"$error":"#DIV/0!"},{"$error":"#DIV/0!"}]

{"sheet":"Schlussfrage","index":33,"n_rows":2,"n_cols":1,"rows_kept":2,"cut":false,"hidden":false,"merged":[]}
["Haben wir noch irgendetwas vergessen?"]
["Für inhaltliche Anmerkungen oder Kommentare nutzen Sie bitte einfach das freie Feld."]